Workbook

Sheet Dashboard
C4: =CONCATENATE(COUNTIF(Table1[Gain/Loss (%)],">1%")," SHARE(S)") -> 4 SHARE(S)
D5: =CONCATENATE(COUNTIF(Table1[Gain/Loss (%)],"<1%")," SHARE(S)") -> 0 SHARE(S)
C10: Initial Portfolio Value | D10: =SUM(E:E) -> 1344824.7
C11: Current Portfolio Value | D11: =SUM(F:F) -> 2148057.62
C12: Total Gain/Loss (%) | D12: =(SUM(F:F)/SUM(E:E))-1 -> 0.5972770429
C13: Total Gain/Loss ($) | D13: =SUM(G:G) -> 803232.92
H15: =CONCATENATE("Closing Prices as of ",SUBSTITUTE(JSESiteQuery!A15,"Combined Market for ","")) -> Closing Prices as of May 15, 2020
A16: Stock | B16: Avg. Purchase Price | C16: Volume | D16: Current Price | E16: Total Spend | F16: Current Value | G16: Gain/Loss ($) | H16: Gain/Loss (%)
A17: NCBFG (JMD) | B17: =_xlfn.IFNA(VLOOKUP(A17,PurchaseInfo!B:H,7,),"") -> 61.3 | C17: =IF(ISBLANK(A17),"",SUMIF(PurchaseInfo!B:B,Dashboard!A17,PurchaseInfo!C:C)-SUMIF(SaleInfo!B:B,Dashboard!A17,SaleInfo!C:C)) -> 3472 | D17: =_xlfn.IFNA(VLOOKUP(A17,JSESiteQuery!A:M,3,),"") -> 148.23 | E17: =IF(ISBLANK(A17),"",(B17*C17)) -> 212833.6 | F17: =IFERROR(D17*C17,"") -> 514654.56 | G17: =IFERROR(F17-E17,"") -> 301820.96 | H17: =IFERROR((F17/E17)-1,"") -> 1.418107667
A18: LAB (JMD) | B18: =_xlfn.IFNA(VLOOKUP(A18,PurchaseInfo!B:H,7,),"") -> 1.723625187 | C18: =IF(ISBLANK(A18),"",SUMIF(PurchaseInfo!B:B,Dashboard!A18,PurchaseInfo!C:C)-SUMIF(SaleInfo!B:B,Dashboard!A18,SaleInfo!C:C)) -> 279638 | D18: =_xlfn.IFNA(VLOOKUP(A18,JSESiteQuery!A:M,3,),"") -> 1.87 | E18: =IF(ISBLANK(A18),"",(B18*C18)) -> 481991.1 | F18: =IFERROR(D18*C18,"") -> 522923.06 | G18: =IFERROR(F18-E18,"") -> 40931.96 | H18: =IFERROR((F18/E18)-1,"") -> 0.08492264691
A19: SCIJMD (JMD) | B19: =_xlfn.IFNA(VLOOKUP(A19,PurchaseInfo!B:H,7,),"") -> 10.38461538 | C19: =IF(ISBLANK(A19),"",SUMIF(PurchaseInfo!B:B,Dashboard!A19,PurchaseInfo!C:C)-SUMIF(SaleInfo!B:B,Dashboard!A19,SaleInfo!C:C)) -> 52000 | D19: =_xlfn.IFNA(VLOOKUP(A19,JSESiteQuery!A:M,3,),"") -> 18.69 | E19: 540000 | F19: 971880 | G19: 431880 | H19: 0.7997777778
A20: WIG (JMD) | B20: =_xlfn.IFNA(VLOOKUP(A20,PurchaseInfo!B:H,7,),"") -> 0.5555555556 | C20: =IF(ISBLANK(A20),"",SUMIF(PurchaseInfo!B:B,Dashboard!A20,PurchaseInfo!C:C)-SUMIF(SaleInfo!B:B,Dashboard!A20,SaleInfo!C:C)) -> 198000 | D20: =_xlfn.IFNA(VLOOKUP(A20,JSESiteQuery!A:M,3,),"") -> 0.7 | E20: =IF(ISBLANK(A20),"",(B20*C20)) -> 110000 | F20: =IFERROR(D20*C20,"") -> 138600 | G20: =IFERROR(F20-E20,"") -> 28600 | H20: =IFERROR((F20/E20)-1,"") -> 0.26
B21: =_xlfn.IFNA(VLOOKUP(A21,PurchaseInfo!B:H,7,),"") ->  | C21: =IF(ISBLANK(A21),"",SUMIF(PurchaseInfo!B:B,Dashboard!A21,PurchaseInfo!C:C)-SUMIF(SaleInfo!B:B,Dashboard!A21,SaleInfo!C:C)) ->  | D21: =_xlfn.IFNA(VLOOKUP(A21,JSESiteQuery!A:M,3,),"") ->  | E21: =IF(ISBLANK(A21),"",(B21*C21)) ->  | F21: =IFERROR(D21*C21,"") ->  | G21: =IFERROR(F21-E21,"") ->  | H21: =IFERROR((F21/E21)-1,"") -> 
B22: =_xlfn.IFNA(VLOOKUP(A22,PurchaseInfo!B:H,7,),"") ->  | C22: =IF(ISBLANK(A22),"",SUMIF(PurchaseInfo!B:B,Dashboard!A22,PurchaseInfo!C:C)-SUMIF(SaleInfo!B:B,Dashboard!A22,SaleInfo!C:C)) ->  | D22: =_xlfn.IFNA(VLOOKUP(A22,JSESiteQuery!A:M,3,),"") -> 
B23: =_xlfn.IFNA(VLOOKUP(A23,PurchaseInfo!B:H,7,),"") ->  | C23: =IF(ISBLANK(A23),"",SUMIF(PurchaseInfo!B:B,Dashboard!A23,PurchaseInfo!C:C)-SUMIF(SaleInfo!B:B,Dashboard!A23,SaleInfo!C:C)) ->  | D23: =_xlfn.IFNA(VLOOKUP(A23,JSESiteQuery!A:M,3,),"") -> 
B24: =_xlfn.IFNA(VLOOKUP(A24,PurchaseInfo!B:H,7,),"") ->  | C24: =IF(ISBLANK(A24),"",SUMIF(PurchaseInfo!B:B,Dashboard!A24,PurchaseInfo!C:C)-SUMIF(SaleInfo!B:B,Dashboard!A24,SaleInfo!C:C)) ->  | D24: =_xlfn.IFNA(VLOOKUP(A24,JSESiteQuery!A:M,3,),"") -> 
B25: =_xlfn.IFNA(VLOOKUP(A25,PurchaseInfo!B:H,7,),"") ->  | C25: =IF(ISBLANK(A25),"",SUMIF(PurchaseInfo!B:B,Dashboard!A25,PurchaseInfo!C:C)-SUMIF(SaleInfo!B:B,Dashboard!A25,SaleInfo!C:C)) ->  | D25: =_xlfn.IFNA(VLOOKUP(A25,JSESiteQuery!A:M,3,),"") -> 
B26: =_xlfn.IFNA(VLOOKUP(A26,PurchaseInfo!B:H,7,),"") ->  | C26: =IF(ISBLANK(A26),"",SUMIF(PurchaseInfo!B:B,Dashboard!A26,PurchaseInfo!C:C)-SUMIF(SaleInfo!B:B,Dashboard!A26,SaleInfo!C:C)) ->  | D26: =_xlfn.IFNA(VLOOKUP(A26,JSESiteQuery!A:M,3,),"") -> 
B27: =_xlfn.IFNA(VLOOKUP(A27,PurchaseInfo!B:H,7,),"") ->  | C27: =IF(ISBLANK(A27),"",SUMIF(PurchaseInfo!B:B,Dashboard!A27,PurchaseInfo!C:C)-SUMIF(SaleInfo!B:B,Dashboard!A27,SaleInfo!C:C)) ->  | D27: =_xlfn.IFNA(VLOOKUP(A27,JSESiteQuery!A:M,3,),"") -> 
B28: =_xlfn.IFNA(VLOOKUP(A28,PurchaseInfo!B:H,7,),"") ->  | C28: =IF(ISBLANK(A28),"",SUMIF(PurchaseInfo!B:B,Dashboard!A28,PurchaseInfo!C:C)-SUMIF(SaleInfo!B:B,Dashboard!A28,SaleInfo!C:C)) ->  | D28: =_xlfn.IFNA(VLOOKUP(A28,JSESiteQuery!A:M,3,),"") -> 
B29: =_xlfn.IFNA(VLOOKUP(A29,PurchaseInfo!B:H,7,),"") ->  | C29: =IF(ISBLANK(A29),"",SUMIF(PurchaseInfo!B:B,Dashboard!A29,PurchaseInfo!C:C)-SUMIF(SaleInfo!B:B,Dashboard!A29,SaleInfo!C:C)) ->  | D29: =_xlfn.IFNA(VLOOKUP(A29,JSESiteQuery!A:M,3,),"") -> 
B30: =_xlfn.IFNA(VLOOKUP(A30,PurchaseInfo!B:H,7,),"") ->  | C30: =IF(ISBLANK(A30),"",SUMIF(PurchaseInfo!B:B,Dashboard!A30,PurchaseInfo!C:C)-SUMIF(SaleInfo!B:B,Dashboard!A30,SaleInfo!C:C)) ->  | D30: =_xlfn.IFNA(VLOOKUP(A30,JSESiteQuery!A:M,3,),"") -> 
B31: =_xlfn.IFNA(VLOOKUP(A31,PurchaseInfo!B:H,7,),"") ->  | C31: =IF(ISBLANK(A31),"",SUMIF(PurchaseInfo!B:B,Dashboard!A31,PurchaseInfo!C:C)-SUMIF(SaleInfo!B:B,Dashboard!A31,SaleInfo!C:C)) ->  | D31: =_xlfn.IFNA(VLOOKUP(A31,JSESiteQuery!A:M,3,),"") -> 
B32: =_xlfn.IFNA(VLOOKUP(A32,PurchaseInfo!B:H,7,),"") ->  | C32: =IF(ISBLANK(A32),"",SUMIF(PurchaseInfo!B:B,Dashboard!A32,PurchaseInfo!C:C)-SUMIF(SaleInfo!B:B,Dashboard!A32,SaleInfo!C:C)) ->  | D32: =_xlfn.IFNA(VLOOKUP(A32,JSESiteQuery!A:M,3,),"") -> 
B33: =_xlfn.IFNA(VLOOKUP(A33,PurchaseInfo!B:H,7,),"") ->  | C33: =IF(ISBLANK(A33),"",SUMIF(PurchaseInfo!B:B,Dashboard!A33,PurchaseInfo!C:C)-SUMIF(SaleInfo!B:B,Dashboard!A33,SaleInfo!C:C)) ->  | D33: =_xlfn.IFNA(VLOOKUP(A33,JSESiteQuery!A:M,3,),"") -> 
B34: =_xlfn.IFNA(VLOOKUP(A34,PurchaseInfo!B:H,7,),"") ->  | C34: =IF(ISBLANK(A34),"",SUMIF(PurchaseInfo!B:B,Dashboard!A34,PurchaseInfo!C:C)-SUMIF(SaleInfo!B:B,Dashboard!A34,SaleInfo!C:C)) ->  | D34: =_xlfn.IFNA(VLOOKUP(A34,JSESiteQuery!A:M,3,),"") -> 
B35: =_xlfn.IFNA(VLOOKUP(A35,PurchaseInfo!B:H,7,),"") ->  | C35: =IF(ISBLANK(A35),"",SUMIF(PurchaseInfo!B:B,Dashboard!A35,PurchaseInfo!C:C)-SUMIF(SaleInfo!B:B,Dashboard!A35,SaleInfo!C:C)) ->  | D35: =_xlfn.IFNA(VLOOKUP(A35,JSESiteQuery!A:M,3,),"") -> 
B36: =_xlfn.IFNA(VLOOKUP(A36,PurchaseInfo!B:H,7,),"") ->  | C36: =IF(ISBLANK(A36),"",SUMIF(PurchaseInfo!B:B,Dashboard!A36,PurchaseInfo!C:C)-SUMIF(SaleInfo!B:B,Dashboard!A36,SaleInfo!C:C)) ->  | D36: =_xlfn.IFNA(VLOOKUP(A36,JSESiteQuery!A:M,3,),"") -> 
B37: =_xlfn.IFNA(VLOOKUP(A37,PurchaseInfo!B:H,7,),"") ->  | C37: =IF(ISBLANK(A37),"",SUMIF(PurchaseInfo!B:B,Dashboard!A37,PurchaseInfo!C:C)-SUMIF(SaleInfo!B:B,Dashboard!A37,SaleInfo!C:C)) ->  | D37: =_xlfn.IFNA(VLOOKUP(A37,JSESiteQuery!A:M,3,),"") -> 
B38: =_xlfn.IFNA(VLOOKUP(A38,PurchaseInfo!B:H,7,),"") ->  | C38: =IF(ISBLANK(A38),"",SUMIF(PurchaseInfo!B:B,Dashboard!A38,PurchaseInfo!C:C)-SUMIF(SaleInfo!B:B,Dashboard!A38,SaleInfo!C:C)) ->  | D38: =_xlfn.IFNA(VLOOKUP(A38,JSESiteQuery!A:M,3,),"") -> 
B39: =_xlfn.IFNA(VLOOKUP(A39,PurchaseInfo!B:H,7,),"") ->  | C39: =IF(ISBLANK(A39),"",SUMIF(PurchaseInfo!B:B,Dashboard!A39,PurchaseInfo!C:C)-SUMIF(SaleInfo!B:B,Dashboard!A39,SaleInfo!C:C)) ->  | D39: =_xlfn.IFNA(VLOOKUP(A39,JSESiteQuery!A:M,3,),"") -> 
B40: =_xlfn.IFNA(VLOOKUP(A40,PurchaseInfo!B:H,7,),"") ->  | C40: =IF(ISBLANK(A40),"",SUMIF(PurchaseInfo!B:B,Dashboard!A40,PurchaseInfo!C:C)-SUMIF(SaleInfo!B:B,Dashboard!A40,SaleInfo!C:C)) ->  | D40: =_xlfn.IFNA(VLOOKUP(A40,JSESiteQuery!A:M,3,),"") -> 
B41: =_xlfn.IFNA(VLOOKUP(A41,PurchaseInfo!B:H,7,),"") ->  | C41: =IF(ISBLANK(A41),"",SUMIF(PurchaseInfo!B:B,Dashboard!A41,PurchaseInfo!C:C)-SUMIF(SaleInfo!B:B,Dashboard!A41,SaleInfo!C:C)) ->  | D41: =_xlfn.IFNA(VLOOKUP(A41,JSESiteQuery!A:M,3,),"") -> 
B42: =_xlfn.IFNA(VLOOKUP(A42,PurchaseInfo!B:H,7,),"") ->  | C42: =IF(ISBLANK(A42),"",SUMIF(PurchaseInfo!B:B,Dashboard!A42,PurchaseInfo!C:C)-SUMIF(SaleInfo!B:B,Dashboard!A42,SaleInfo!C:C)) ->  | D42: =_xlfn.IFNA(VLOOKUP(A42,JSESiteQuery!A:M,3,),"") -> 
B43: =_xlfn.IFNA(VLOOKUP(A43,PurchaseInfo!B:H,7,),"") ->  | C43: =IF(ISBLANK(A43),"",SUMIF(PurchaseInfo!B:B,Dashboard!A43,PurchaseInfo!C:C)-SUMIF(SaleInfo!B:B,Dashboard!A43,SaleInfo!C:C)) ->  | D43: =_xlfn.IFNA(VLOOKUP(A43,JSESiteQuery!A:M,3,),"") -> 
B44: =_xlfn.IFNA(VLOOKUP(A44,PurchaseInfo!B:H,7,),"") ->  | C44: =IF(ISBLANK(A44),"",SUMIF(PurchaseInfo!B:B,Dashboard!A44,PurchaseInfo!C:C)-SUMIF(SaleInfo!B:B,Dashboard!A44,SaleInfo!C:C)) ->  | D44: =_xlfn.IFNA(VLOOKUP(A44,JSESiteQuery!A:M,3,),"") -> 
B45: =_xlfn.IFNA(VLOOKUP(A45,PurchaseInfo!B:H,7,),"") ->  | C45: =IF(ISBLANK(A45),"",SUMIF(PurchaseInfo!B:B,Dashboard!A45,PurchaseInfo!C:C)-SUMIF(SaleInfo!B:B,Dashboard!A45,SaleInfo!C:C)) ->  | D45: =_xlfn.IFNA(VLOOKUP(A45,JSESiteQuery!A:M,3,),"") -> 
B46: =_xlfn.IFNA(VLOOKUP(A46,PurchaseInfo!B:H,7,),"") ->  | C46: =IF(ISBLANK(A46),"",SUMIF(PurchaseInfo!B:B,Dashboard!A46,PurchaseInfo!C:C)-SUMIF(SaleInfo!B:B,Dashboard!A46,SaleInfo!C:C)) ->  | D46: =_xlfn.IFNA(VLOOKUP(A46,JSESiteQuery!A:M,3,),"") -> 
B47: =_xlfn.IFNA(VLOOKUP(A47,PurchaseInfo!B:H,7,),"") ->  | C47: =IF(ISBLANK(A47),"",SUMIF(PurchaseInfo!B:B,Dashboard!A47,PurchaseInfo!C:C)-SUMIF(SaleInfo!B:B,Dashboard!A47,SaleInfo!C:C)) ->  | D47: =_xlfn.IFNA(VLOOKUP(A47,JSESiteQuery!A:M,3,),"") -> 
B48: =_xlfn.IFNA(VLOOKUP(A48,PurchaseInfo!B:H,7,),"") ->  | C48: =IF(ISBLANK(A48),"",SUMIF(PurchaseInfo!B:B,Dashboard!A48,PurchaseInfo!C:C)-SUMIF(SaleInfo!B:B,Dashboard!A48,SaleInfo!C:C)) ->  | D48: =_xlfn.IFNA(VLOOKUP(A48,JSESiteQuery!A:M,3,),"") -> 
B49: =_xlfn.IFNA(VLOOKUP(A49,PurchaseInfo!B:H,7,),"") ->  | C49: =IF(ISBLANK(A49),"",SUMIF(PurchaseInfo!B:B,Dashboard!A49,PurchaseInfo!C:C)-SUMIF(SaleInfo!B:B,Dashboard!A49,SaleInfo!C:C)) ->  | D49: =_xlfn.IFNA(VLOOKUP(A49,JSESiteQuery!A:M,3,),"") -> 
B50: =_xlfn.IFNA(VLOOKUP(A50,PurchaseInfo!B:H,7,),"") ->  | C50: =IF(ISBLANK(A50),"",SUMIF(PurchaseInfo!B:B,Dashboard!A50,PurchaseInfo!C:C)-SUMIF(SaleInfo!B:B,Dashboard!A50,SaleInfo!C:C)) ->  | D50: =_xlfn.IFNA(VLOOKUP(A50,JSESiteQuery!A:M,3,),"") -> 
B51: =_xlfn.IFNA(VLOOKUP(A51,PurchaseInfo!B:H,7,),"") ->  | C51: =IF(ISBLANK(A51),"",SUMIF(PurchaseInfo!B:B,Dashboard!A51,PurchaseInfo!C:C)-SUMIF(SaleInfo!B:B,Dashboard!A51,SaleInfo!C:C)) ->  | D51: =_xlfn.IFNA(VLOOKUP(A51,JSESiteQuery!A:M,3,),"") -> 
B52: =_xlfn.IFNA(VLOOKUP(A52,PurchaseInfo!B:H,7,),"") ->  | C52: =IF(ISBLANK(A52),"",SUMIF(PurchaseInfo!B:B,Dashboard!A52,PurchaseInfo!C:C)-SUMIF(SaleInfo!B:B,Dashboard!A52,SaleInfo!C:C)) ->  | D52: =_xlfn.IFNA(VLOOKUP(A52,JSESiteQuery!A:M,3,),"") -> 
B53: =_xlfn.IFNA(VLOOKUP(A53,PurchaseInfo!B:H,7,),"") ->  | C53: =IF(ISBLANK(A53),"",SUMIF(PurchaseInfo!B:B,Dashboard!A53,PurchaseInfo!C:C)-SUMIF(SaleInfo!B:B,Dashboard!A53,SaleInfo!C:C)) ->  | D53: =_xlfn.IFNA(VLOOKUP(A53,JSESiteQuery!A:M,3,),"") -> 
B54: =_xlfn.IFNA(VLOOKUP(A54,PurchaseInfo!B:H,7,),"") ->  | C54: =IF(ISBLANK(A54),"",SUMIF(PurchaseInfo!B:B,Dashboard!A54,PurchaseInfo!C:C)-SUMIF(SaleInfo!B:B,Dashboard!A54,SaleInfo!C:C)) ->  | D54: =_xlfn.IFNA(VLOOKUP(A54,JSESiteQuery!A:M,3,),"") -> 
B55: =_xlfn.IFNA(VLOOKUP(A55,PurchaseInfo!B:H,7,),"") ->  | C55: =IF(ISBLANK(A55),"",SUMIF(PurchaseInfo!B:B,Dashboard!A55,PurchaseInfo!C:C)-SUMIF(SaleInfo!B:B,Dashboard!A55,SaleInfo!C:C)) ->  | D55: =_xlfn.IFNA(VLOOKUP(A55,JSESiteQuery!A:M,3,),"") -> 
B56: =_xlfn.IFNA(VLOOKUP(A56,PurchaseInfo!B:H,7,),"") ->  | C56: =IF(ISBLANK(A56),"",SUMIF(PurchaseInfo!B:B,Dashboard!A56,PurchaseInfo!C:C)-SUMIF(SaleInfo!B:B,Dashboard!A56,SaleInfo!C:C)) ->  | D56: =_xlfn.IFNA(VLOOKUP(A56,JSESiteQuery!A:M,3,),"") -> 
B57: =_xlfn.IFNA(VLOOKUP(A57,PurchaseInfo!B:H,7,),"") ->  | C57: =IF(ISBLANK(A57),"",SUMIF(PurchaseInfo!B:B,Dashboard!A57,PurchaseInfo!C:C)-SUMIF(SaleInfo!B:B,Dashboard!A57,SaleInfo!C:C)) ->  | D57: =_xlfn.IFNA(VLOOKUP(A57,JSESiteQuery!A:M,3,),"") -> 
B58: =_xlfn.IFNA(VLOOKUP(A58,PurchaseInfo!B:H,7,),"") ->  | C58: =IF(ISBLANK(A58),"",SUMIF(PurchaseInfo!B:B,Dashboard!A58,PurchaseInfo!C:C)-SUMIF(SaleInfo!B:B,Dashboard!A58,SaleInfo!C:C)) ->  | D58: =_xlfn.IFNA(VLOOKUP(A58,JSESiteQuery!A:M,3,),"") -> 
B59: =_xlfn.IFNA(VLOOKUP(A59,PurchaseInfo!B:H,7,),"") ->  | C59: =IF(ISBLANK(A59),"",SUMIF(PurchaseInfo!B:B,Dashboard!A59,PurchaseInfo!C:C)-SUMIF(SaleInfo!B:B,Dashboard!A59,SaleInfo!C:C)) ->  | D59: =_xlfn.IFNA(VLOOKUP(A59,JSESiteQuery!A:M,3,),"") -> 
B60: =_xlfn.IFNA(VLOOKUP(A60,PurchaseInfo!B:H,7,),"") ->  | C60: =IF(ISBLANK(A60),"",SUMIF(PurchaseInfo!B:B,Dashboard!A60,PurchaseInfo!C:C)-SUMIF(SaleInfo!B:B,Dashboard!A60,SaleInfo!C:C)) ->  | D60: =_xlfn.IFNA(VLOOKUP(A60,JSESiteQuery!A:M,3,),"") -> 
B61: =_xlfn.IFNA(VLOOKUP(A61,PurchaseInfo!B:H,7,),"") ->  | C61: =IF(ISBLANK(A61),"",SUMIF(PurchaseInfo!B:B,Dashboard!A61,PurchaseInfo!C:C)-SUMIF(SaleInfo!B:B,Dashboard!A61,SaleInfo!C:C)) ->  | D61: =_xlfn.IFNA(VLOOKUP(A61,JSESiteQuery!A:M,3,),"") -> 
B62: =_xlfn.IFNA(VLOOKUP(A62,PurchaseInfo!B:H,7,),"") ->  | C62: =IF(ISBLANK(A62),"",SUMIF(PurchaseInfo!B:B,Dashboard!A62,PurchaseInfo!C:C)-SUMIF(SaleInfo!B:B,Dashboard!A62,SaleInfo!C:C)) ->  | D62: =_xlfn.IFNA(VLOOKUP(A62,JSESiteQuery!A:M,3,),"") -> 
B63: =_xlfn.IFNA(VLOOKUP(A63,PurchaseInfo!B:H,7,),"") ->  | C63: =IF(ISBLANK(A63),"",SUMIF(PurchaseInfo!B:B,Dashboard!A63,PurchaseInfo!C:C)-SUMIF(SaleInfo!B:B,Dashboard!A63,SaleInfo!C:C)) ->  | D63: =_xlfn.IFNA(VLOOKUP(A63,JSESiteQuery!A:M,3,),"") -> 
B64: =_xlfn.IFNA(VLOOKUP(A64,PurchaseInfo!B:H,7,),"") ->  | C64: =IF(ISBLANK(A64),"",SUMIF(PurchaseInfo!B:B,Dashboard!A64,PurchaseInfo!C:C)-SUMIF(SaleInfo!B:B,Dashboard!A64,SaleInfo!C:C)) ->  | D64: =_xlfn.IFNA(VLOOKUP(A64,JSESiteQuery!A:M,3,),"") -> 
B65: =_xlfn.IFNA(VLOOKUP(A65,PurchaseInfo!B:H,7,),"") ->  | C65: =IF(ISBLANK(A65),"",SUMIF(PurchaseInfo!B:B,Dashboard!A65,PurchaseInfo!C:C)-SUMIF(SaleInfo!B:B,Dashboard!A65,SaleInfo!C:C)) ->  | D65: =_xlfn.IFNA(VLOOKUP(A65,JSESiteQuery!A:M,3,),"") -> 
B66: =_xlfn.IFNA(VLOOKUP(A66,PurchaseInfo!B:H,7,),"") ->  | C66: =IF(ISBLANK(A66),"",SUMIF(PurchaseInfo!B:B,Dashboard!A66,PurchaseInfo!C:C)-SUMIF(SaleInfo!B:B,Dashboard!A66,SaleInfo!C:C)) ->  | D66: =_xlfn.IFNA(VLOOKUP(A66,JSESiteQuery!A:M,3,),"") -> 
B67: =_xlfn.IFNA(VLOOKUP(A67,PurchaseInfo!B:H,7,),"") ->  | C67: =IF(ISBLANK(A67),"",SUMIF(PurchaseInfo!B:B,Dashboard!A67,PurchaseInfo!C:C)-SUMIF(SaleInfo!B:B,Dashboard!A67,SaleInfo!C:C)) ->  | D67: =_xlfn.IFNA(VLOOKUP(A67,JSESiteQuery!A:M,3,),"") -> 
B68: =_xlfn.IFNA(VLOOKUP(A68,PurchaseInfo!B:H,7,),"") ->  | C68: =IF(ISBLANK(A68),"",SUMIF(PurchaseInfo!B:B,Dashboard!A68,PurchaseInfo!C:C)-SUMIF(SaleInfo!B:B,Dashboard!A68,SaleInfo!C:C)) ->  | D68: =_xlfn.IFNA(VLOOKUP(A68,JSESiteQuery!A:M,3,),"") -> 
B69: =_xlfn.IFNA(VLOOKUP(A69,PurchaseInfo!B:H,7,),"") ->  | C69: =IF(ISBLANK(A69),"",SUMIF(PurchaseInfo!B:B,Dashboard!A69,PurchaseInfo!C:C)-SUMIF(SaleInfo!B:B,Dashboard!A69,SaleInfo!C:C)) ->  | D69: =_xlfn.IFNA(VLOOKUP(A69,JSESiteQuery!A:M,3,),"") -> 
B70: =_xlfn.IFNA(VLOOKUP(A70,PurchaseInfo!B:H,7,),"") ->  | C70: =IF(ISBLANK(A70),"",SUMIF(PurchaseInfo!B:B,Dashboard!A70,PurchaseInfo!C:C)-SUMIF(SaleInfo!B:B,Dashboard!A70,SaleInfo!C:C)) ->  | D70: =_xlfn.IFNA(VLOOKUP(A70,JSESiteQuery!A:M,3,),"") -> 
B71: =_xlfn.IFNA(VLOOKUP(A71,PurchaseInfo!B:H,7,),"") ->  | C71: =IF(ISBLANK(A71),"",SUMIF(PurchaseInfo!B:B,Dashboard!A71,PurchaseInfo!C:C)-SUMIF(SaleInfo!B:B,Dashboard!A71,SaleInfo!C:C)) ->  | D71: =_xlfn.IFNA(VLOOKUP(A71,JSESiteQuery!A:M,3,),"") -> 
B72: =_xlfn.IFNA(VLOOKUP(A72,PurchaseInfo!B:H,7,),"") ->  | C72: =IF(ISBLANK(A72),"",SUMIF(PurchaseInfo!B:B,Dashboard!A72,PurchaseInfo!C:C)-SUMIF(SaleInfo!B:B,Dashboard!A72,SaleInfo!C:C)) ->  | D72: =_xlfn.IFNA(VLOOKUP(A72,JSESiteQuery!A:M,3,),"") -> 
B73: =_xlfn.IFNA(VLOOKUP(A73,PurchaseInfo!B:H,7,),"") ->  | C73: =IF(ISBLANK(A73),"",SUMIF(PurchaseInfo!B:B,Dashboard!A73,PurchaseInfo!C:C)-SUMIF(SaleInfo!B:B,Dashboard!A73,SaleInfo!C:C)) ->  | D73: =_xlfn.IFNA(VLOOKUP(A73,JSESiteQuery!A:M,3,),"") -> 
B74: =_xlfn.IFNA(VLOOKUP(A74,PurchaseInfo!B:H,7,),"") ->  | C74: =IF(ISBLANK(A74),"",SUMIF(PurchaseInfo!B:B,Dashboard!A74,PurchaseInfo!C:C)-SUMIF(SaleInfo!B:B,Dashboard!A74,SaleInfo!C:C)) ->  | D74: =_xlfn.IFNA(VLOOKUP(A74,JSESiteQuery!A:M,3,),"") -> 
B75: =_xlfn.IFNA(VLOOKUP(A75,PurchaseInfo!B:H,7,),"") ->  | C75: =IF(ISBLANK(A75),"",SUMIF(PurchaseInfo!B:B,Dashboard!A75,PurchaseInfo!C:C)-SUMIF(SaleInfo!B:B,Dashboard!A75,SaleInfo!C:C)) ->  | D75: =_xlfn.IFNA(VLOOKUP(A75,JSESiteQuery!A:M,3,),"") -> 
B76: =_xlfn.IFNA(VLOOKUP(A76,PurchaseInfo!B:H,7,),"") ->  | C76: =IF(ISBLANK(A76),"",SUMIF(PurchaseInfo!B:B,Dashboard!A76,PurchaseInfo!C:C)-SUMIF(SaleInfo!B:B,Dashboard!A76,SaleInfo!C:C)) ->  | D76: =_xlfn.IFNA(VLOOKUP(A76,JSESiteQuery!A:M,3,),"") -> 
B77: =_xlfn.IFNA(VLOOKUP(A77,PurchaseInfo!B:H,7,),"") ->  | C77: =IF(ISBLANK(A77),"",SUMIF(PurchaseInfo!B:B,Dashboard!A77,PurchaseInfo!C:C)-SUMIF(SaleInfo!B:B,Dashboard!A77,SaleInfo!C:C)) ->  | D77: =_xlfn.IFNA(VLOOKUP(A77,JSESiteQuery!A:M,3,),"") -> 
B78: =_xlfn.IFNA(VLOOKUP(A78,PurchaseInfo!B:H,7,),"") ->  | C78: =IF(ISBLANK(A78),"",SUMIF(PurchaseInfo!B:B,Dashboard!A78,PurchaseInfo!C:C)-SUMIF(SaleInfo!B:B,Dashboard!A78,SaleInfo!C:C)) ->  | D78: =_xlfn.IFNA(VLOOKUP(A78,JSESiteQuery!A:M,3,),"") -> 
B79: =_xlfn.IFNA(VLOOKUP(A79,PurchaseInfo!B:H,7,),"") ->  | C79: =IF(ISBLANK(A79),"",SUMIF(PurchaseInfo!B:B,Dashboard!A79,PurchaseInfo!C:C)-SUMIF(SaleInfo!B:B,Dashboard!A79,SaleInfo!C:C)) ->  | D79: =_xlfn.IFNA(VLOOKUP(A79,JSESiteQuery!A:M,3,),"") -> 
B80: =_xlfn.IFNA(VLOOKUP(A80,PurchaseInfo!B:H,7,),"") ->  | C80: =IF(ISBLANK(A80),"",SUMIF(PurchaseInfo!B:B,Dashboard!A80,PurchaseInfo!C:C)-SUMIF(SaleInfo!B:B,Dashboard!A80,SaleInfo!C:C)) ->  | D80: =_xlfn.IFNA(VLOOKUP(A80,JSESiteQuery!A:M,3,),"") -> 
B81: =_xlfn.IFNA(VLOOKUP(A81,PurchaseInfo!B:H,7,),"") ->  | C81: =IF(ISBLANK(A81),"",SUMIF(PurchaseInfo!B:B,Dashboard!A81,PurchaseInfo!C:C)-SUMIF(SaleInfo!B:B,Dashboard!A81,SaleInfo!C:C)) ->  | D81: =_xlfn.IFNA(VLOOKUP(A81,JSESiteQuery!A:M,3,),"") -> 
B82: =_xlfn.IFNA(VLOOKUP(A82,PurchaseInfo!B:H,7,),"") ->  | C82: =IF(ISBLANK(A82),"",SUMIF(PurchaseInfo!B:B,Dashboard!A82,PurchaseInfo!C:C)-SUMIF(SaleInfo!B:B,Dashboard!A82,SaleInfo!C:C)) ->  | D82: =_xlfn.IFNA(VLOOKUP(A82,JSESiteQuery!A:M,3,),"") -> 
B83: =_xlfn.IFNA(VLOOKUP(A83,PurchaseInfo!B:H,7,),"") ->  | C83: =IF(ISBLANK(A83),"",SUMIF(PurchaseInfo!B:B,Dashboard!A83,PurchaseInfo!C:C)-SUMIF(SaleInfo!B:B,Dashboard!A83,SaleInfo!C:C)) ->  | D83: =_xlfn.IFNA(VLOOKUP(A83,JSESiteQuery!A:M,3,),"") -> 
B84: =_xlfn.IFNA(VLOOKUP(A84,PurchaseInfo!B:H,7,),"") ->  | C84: =IF(ISBLANK(A84),"",SUMIF(PurchaseInfo!B:B,Dashboard!A84,PurchaseInfo!C:C)-SUMIF(SaleInfo!B:B,Dashboard!A84,SaleInfo!C:C)) ->  | D84: =_xlfn.IFNA(VLOOKUP(A84,JSESiteQuery!A:M,3,),"") -> 
B85: =_xlfn.IFNA(VLOOKUP(A85,PurchaseInfo!B:H,7,),"") ->  | C85: =IF(ISBLANK(A85),"",SUMIF(PurchaseInfo!B:B,Dashboard!A85,PurchaseInfo!C:C)-SUMIF(SaleInfo!B:B,Dashboard!A85,SaleInfo!C:C)) ->  | D85: =_xlfn.IFNA(VLOOKUP(A85,JSESiteQuery!A:M,3,),"") ->  | E85: =IF(ISBLANK(A85),"",(B85*C85)) ->  | F85: =IFERROR(D85*C85,"") ->  | G85: =IFERROR(F85-E85,"") ->  | H85: =IFERROR((F85/E85)-1,"") -> 
B86: =_xlfn.IFNA(VLOOKUP(A86,PurchaseInfo!B:H,7,),"") ->  | C86: =IF(ISBLANK(A86),"",SUMIF(PurchaseInfo!B:B,Dashboard!A86,PurchaseInfo!C:C)-SUMIF(SaleInfo!B:B,Dashboard!A86,SaleInfo!C:C)) ->  | D86: =_xlfn.IFNA(VLOOKUP(A86,JSESiteQuery!A:M,3,),"") -> 
B87: =_xlfn.IFNA(VLOOKUP(A87,PurchaseInfo!B:H,7,),"") ->  | C87: =IF(ISBLANK(A87),"",SUMIF(PurchaseInfo!B:B,Dashboard!A87,PurchaseInfo!C:C)-SUMIF(SaleInfo!B:B,Dashboard!A87,SaleInfo!C:C)) ->  | D87: =_xlfn.IFNA(VLOOKUP(A87,JSESiteQuery!A:M,3,),"") -> 
B88: =_xlfn.IFNA(VLOOKUP(A88,PurchaseInfo!B:H,7,),"") ->  | C88: =IF(ISBLANK(A88),"",SUMIF(PurchaseInfo!B:B,Dashboard!A88,PurchaseInfo!C:C)-SUMIF(SaleInfo!B:B,Dashboard!A88,SaleInfo!C:C)) ->  | D88: =_xlfn.IFNA(VLOOKUP(A88,JSESiteQuery!A:M,3,),"") -> 
B89: =_xlfn.IFNA(VLOOKUP(A89,PurchaseInfo!B:H,7,),"") ->  | C89: =IF(ISBLANK(A89),"",SUMIF(PurchaseInfo!B:B,Dashboard!A89,PurchaseInfo!C:C)-SUMIF(SaleInfo!B:B,Dashboard!A89,SaleInfo!C:C)) ->  | D89: =_xlfn.IFNA(VLOOKUP(A89,JSESiteQuery!A:M,3,),"") -> 
B90: =_xlfn.IFNA(VLOOKUP(A90,PurchaseInfo!B:H,7,),"") ->  | C90: =IF(ISBLANK(A90),"",SUMIF(PurchaseInfo!B:B,Dashboard!A90,PurchaseInfo!C:C)-SUMIF(SaleInfo!B:B,Dashboard!A90,SaleInfo!C:C)) ->  | D90: =_xlfn.IFNA(VLOOKUP(A90,JSESiteQuery!A:M,3,),"") -> 
B91: =_xlfn.IFNA(VLOOKUP(A91,PurchaseInfo!B:H,7,),"") ->  | C91: =IF(ISBLANK(A91),"",SUMIF(PurchaseInfo!B:B,Dashboard!A91,PurchaseInfo!C:C)-SUMIF(SaleInfo!B:B,Dashboard!A91,SaleInfo!C:C)) ->  | D91: =_xlfn.IFNA(VLOOKUP(A91,JSESiteQuery!A:M,3,),"") -> 
B92: =_xlfn.IFNA(VLOOKUP(A92,PurchaseInfo!B:H,7,),"") ->  | C92: =IF(ISBLANK(A92),"",SUMIF(PurchaseInfo!B:B,Dashboard!A92,PurchaseInfo!C:C)-SUMIF(SaleInfo!B:B,Dashboard!A92,SaleInfo!C:C)) ->  | D92: =_xlfn.IFNA(VLOOKUP(A92,JSESiteQuery!A:M,3,),"") -> 
B93: =_xlfn.IFNA(VLOOKUP(A93,PurchaseInfo!B:H,7,),"") ->  | C93: =IF(ISBLANK(A93),"",SUMIF(PurchaseInfo!B:B,Dashboard!A93,PurchaseInfo!C:C)-SUMIF(SaleInfo!B:B,Dashboard!A93,SaleInfo!C:C)) ->  | D93: =_xlfn.IFNA(VLOOKUP(A93,JSESiteQuery!A:M,3,),"") -> 
B94: =_xlfn.IFNA(VLOOKUP(A94,PurchaseInfo!B:H,7,),"") ->  | C94: =IF(ISBLANK(A94),"",SUMIF(PurchaseInfo!B:B,Dashboard!A94,PurchaseInfo!C:C)-SUMIF(SaleInfo!B:B,Dashboard!A94,SaleInfo!C:C)) ->  | D94: =_xlfn.IFNA(VLOOKUP(A94,JSESiteQuery!A:M,3,),"") -> 
B95: =_xlfn.IFNA(VLOOKUP(A95,PurchaseInfo!B:H,7,),"") ->  | C95: =IF(ISBLANK(A95),"",SUMIF(PurchaseInfo!B:B,Dashboard!A95,PurchaseInfo!C:C)-SUMIF(SaleInfo!B:B,Dashboard!A95,SaleInfo!C:C)) ->  | D95: =_xlfn.IFNA(VLOOKUP(A95,JSESiteQuery!A:M,3,),"") -> 
B96: =_xlfn.IFNA(VLOOKUP(A96,PurchaseInfo!B:H,7,),"") ->  | C96: =IF(ISBLANK(A96),"",SUMIF(PurchaseInfo!B:B,Dashboard!A96,PurchaseInfo!C:C)-SUMIF(SaleInfo!B:B,Dashboard!A96,SaleInfo!C:C)) ->  | D96: =_xlfn.IFNA(VLOOKUP(A96,JSESiteQuery!A:M,3,),"") -> 
B97: =_xlfn.IFNA(VLOOKUP(A97,PurchaseInfo!B:H,7,),"") ->  | C97: =IF(ISBLANK(A97),"",SUMIF(PurchaseInfo!B:B,Dashboard!A97,PurchaseInfo!C:C)-SUMIF(SaleInfo!B:B,Dashboard!A97,SaleInfo!C:C)) ->  | D97: =_xlfn.IFNA(VLOOKUP(A97,JSESiteQuery!A:M,3,),"") -> 
B98: =_xlfn.IFNA(VLOOKUP(A98,PurchaseInfo!B:H,7,),"") ->  | C98: =IF(ISBLANK(A98),"",SUMIF(PurchaseInfo!B:B,Dashboard!A98,PurchaseInfo!C:C)-SUMIF(SaleInfo!B:B,Dashboard!A98,SaleInfo!C:C)) ->  | D98: =_xlfn.IFNA(VLOOKUP(A98,JSESiteQuery!A:M,3,),"") -> 
B99: =_xlfn.IFNA(VLOOKUP(A99,PurchaseInfo!B:H,7,),"") ->  | C99: =IF(ISBLANK(A99),"",SUMIF(PurchaseInfo!B:B,Dashboard!A99,PurchaseInfo!C:C)-SUMIF(SaleInfo!B:B,Dashboard!A99,SaleInfo!C:C)) ->  | D99: =_xlfn.IFNA(VLOOKUP(A99,JSESiteQuery!A:M,3,),"") -> 
B100: =_xlfn.IFNA(VLOOKUP(A100,PurchaseInfo!B:H,7,),"") ->  | C100: =IF(ISBLANK(A100),"",SUMIF(PurchaseInfo!B:B,Dashboard!A100,PurchaseInfo!C:C)-SUMIF(SaleInfo!B:B,Dashboard!A100,SaleInfo!C:C)) ->  | D100: =_xlfn.IFNA(VLOOKUP(A100,JSESiteQuery!A:M,3,),"") ->  | E100: =IF(ISBLANK(A100),"",(B100*C100)) ->  | F100: =IFERROR(D100*C100,"") ->  | G100: =IFERROR(F100-E100,"") ->  | H100: =IFERROR((F100/E100)-1,"") -> 

Sheet PurchaseInfo
A1: Purchase Info | D1: Only enter shares bought, not sold. (Enter Volume Bought and Amount Spent)
A2: Date | B2: Stock | C2: Volume Bought | D2: Amount Spent | E2: Purchase Cost | F2: Notes | H2: Avg. Cost
A3: 2019-05-01 | B3: WIG (JMD) | C3: 198000 | D3: 110000 | E3: =IFERROR(D3/C3,"") -> 0.5555555556 | H3: =IFERROR(SUMIF(B:B,B3,D:D)/SUMIF(B:B,B3,C:C),"") -> 0.5555555556
A4: 2019-07-17 | B4: LAB (JMD) | C4: 22638 | D4: 22801.1 | E4: 1.0072047 | H4: =IFERROR(SUMIF(B:B,B4,D:D)/SUMIF(B:B,B4,C:C),"") -> 1.723625187
A5: 2019-07-30 | B5: LAB (JMD) | C5: 257000 | D5: 459190 | E5: 1.786731518 | H5: =IFERROR(SUMIF(B:B,B5,D:D)/SUMIF(B:B,B5,C:C),"") -> 1.723625187
A6: 2017-11-02 | B6: NCBFG (JMD) | C6: 15472 | D6: 948433.6 | E6: 61.3 | H6: =IFERROR(SUMIF(B:B,B6,D:D)/SUMIF(B:B,B6,C:C),"") -> 61.3
A7: 2018-12-11 | B7: SCIJMD (JMD) | C7: 52000 | D7: 540000 | E7: 10.38461538 | H7: =IFERROR(SUMIF(B:B,B7,D:D)/SUMIF(B:B,B7,C:C),"") -> 10.38461538
H8: =IFERROR(SUMIF(B:B,B8,D:D)/SUMIF(B:B,B8,C:C),"") -> 
H9: =IFERROR(SUMIF(B:B,B9,D:D)/SUMIF(B:B,B9,C:C),"") -> 
H10: =IFERROR(SUMIF(B:B,B10,D:D)/SUMIF(B:B,B10,C:C),"") -> 
H11: =IFERROR(SUMIF(B:B,B11,D:D)/SUMIF(B:B,B11,C:C),"") -> 
H12: =IFERROR(SUMIF(B:B,B12,D:D)/SUMIF(B:B,B12,C:C),"") -> 
H13: =IFERROR(SUMIF(B:B,B13,D:D)/SUMIF(B:B,B13,C:C),"") -> 
H14: =IFERROR(SUMIF(B:B,B14,D:D)/SUMIF(B:B,B14,C:C),"") -> 
H15: =IFERROR(SUMIF(B:B,B15,D:D)/SUMIF(B:B,B15,C:C),"") -> 
H16: =IFERROR(SUMIF(B:B,B16,D:D)/SUMIF(B:B,B16,C:C),"") -> 
H17: =IFERROR(SUMIF(B:B,B17,D:D)/SUMIF(B:B,B17,C:C),"") -> 
H18: =IFERROR(SUMIF(B:B,B18,D:D)/SUMIF(B:B,B18,C:C),"") -> 
H19: =IFERROR(SUMIF(B:B,B19,D:D)/SUMIF(B:B,B19,C:C),"") -> 
H20: =IFERROR(SUMIF(B:B,B20,D:D)/SUMIF(B:B,B20,C:C),"") -> 
H21: =IFERROR(SUMIF(B:B,B21,D:D)/SUMIF(B:B,B21,C:C),"") -> 
H22: =IFERROR(SUMIF(B:B,B22,D:D)/SUMIF(B:B,B22,C:C),"") -> 
H23: =IFERROR(SUMIF(B:B,B23,D:D)/SUMIF(B:B,B23,C:C),"") -> 
H24: =IFERROR(SUMIF(B:B,B24,D:D)/SUMIF(B:B,B24,C:C),"") -> 
H25: =IFERROR(SUMIF(B:B,B25,D:D)/SUMIF(B:B,B25,C:C),"") -> 
H26: =IFERROR(SUMIF(B:B,B26,D:D)/SUMIF(B:B,B26,C:C),"") -> 
H27: =IFERROR(SUMIF(B:B,B27,D:D)/SUMIF(B:B,B27,C:C),"") -> 
H28: =IFERROR(SUMIF(B:B,B28,D:D)/SUMIF(B:B,B28,C:C),"") -> 
H29: =IFERROR(SUMIF(B:B,B29,D:D)/SUMIF(B:B,B29,C:C),"") -> 
H30: =IFERROR(SUMIF(B:B,B30,D:D)/SUMIF(B:B,B30,C:C),"") -> 
H31: =IFERROR(SUMIF(B:B,B31,D:D)/SUMIF(B:B,B31,C:C),"") -> 
H32: =IFERROR(SUMIF(B:B,B32,D:D)/SUMIF(B:B,B32,C:C),"") -> 
H33: =IFERROR(SUMIF(B:B,B33,D:D)/SUMIF(B:B,B33,C:C),"") -> 
H34: =IFERROR(SUMIF(B:B,B34,D:D)/SUMIF(B:B,B34,C:C),"") -> 
H35: =IFERROR(SUMIF(B:B,B35,D:D)/SUMIF(B:B,B35,C:C),"") -> 
H36: =IFERROR(SUMIF(B:B,B36,D:D)/SUMIF(B:B,B36,C:C),"") -> 
H37: =IFERROR(SUMIF(B:B,B37,D:D)/SUMIF(B:B,B37,C:C),"") -> 
H38: =IFERROR(SUMIF(B:B,B38,D:D)/SUMIF(B:B,B38,C:C),"") -> 
H39: =IFERROR(SUMIF(B:B,B39,D:D)/SUMIF(B:B,B39,C:C),"") -> 
E40: =IFERROR(D40/C40,"") ->  | H40: =IFERROR(SUMIF(B:B,B40,D:D)/SUMIF(B:B,B40,C:C),"") -> 
H41: =IFERROR(SUMIF(B:B,B41,D:D)/SUMIF(B:B,B41,C:C),"") -> 
H42: =IFERROR(SUMIF(B:B,B42,D:D)/SUMIF(B:B,B42,C:C),"") -> 
H43: =IFERROR(SUMIF(B:B,B43,D:D)/SUMIF(B:B,B43,C:C),"") -> 
H44: =IFERROR(SUMIF(B:B,B44,D:D)/SUMIF(B:B,B44,C:C),"") -> 
H45: =IFERROR(SUMIF(B:B,B45,D:D)/SUMIF(B:B,B45,C:C),"") -> 
H46: =IFERROR(SUMIF(B:B,B46,D:D)/SUMIF(B:B,B46,C:C),"") -> 
H47: =IFERROR(SUMIF(B:B,B47,D:D)/SUMIF(B:B,B47,C:C),"") -> 
H48: =IFERROR(SUMIF(B:B,B48,D:D)/SUMIF(B:B,B48,C:C),"") -> 
H49: =IFERROR(SUMIF(B:B,B49,D:D)/SUMIF(B:B,B49,C:C),"") -> 
H50: =IFERROR(SUMIF(B:B,B50,D:D)/SUMIF(B:B,B50,C:C),"") -> 
H51: =IFERROR(SUMIF(B:B,B51,D:D)/SUMIF(B:B,B51,C:C),"") -> 
H52: =IFERROR(SUMIF(B:B,B52,D:D)/SUMIF(B:B,B52,C:C),"") -> 
H53: =IFERROR(SUMIF(B:B,B53,D:D)/SUMIF(B:B,B53,C:C),"") -> 
H54: =IFERROR(SUMIF(B:B,B54,D:D)/SUMIF(B:B,B54,C:C),"") -> 
H55: =IFERROR(SUMIF(B:B,B55,D:D)/SUMIF(B:B,B55,C:C),"") -> 
H56: =IFERROR(SUMIF(B:B,B56,D:D)/SUMIF(B:B,B56,C:C),"") -> 
H57: =IFERROR(SUMIF(B:B,B57,D:D)/SUMIF(B:B,B57,C:C),"") -> 
H58: =IFERROR(SUMIF(B:B,B58,D:D)/SUMIF(B:B,B58,C:C),"") -> 
H59: =IFERROR(SUMIF(B:B,B59,D:D)/SUMIF(B:B,B59,C:C),"") -> 
H60: =IFERROR(SUMIF(B:B,B60,D:D)/SUMIF(B:B,B60,C:C),"") -> 
H61: =IFERROR(SUMIF(B:B,B61,D:D)/SUMIF(B:B,B61,C:C),"") -> 
H62: =IFERROR(SUMIF(B:B,B62,D:D)/SUMIF(B:B,B62,C:C),"") -> 
H63: =IFERROR(SUMIF(B:B,B63,D:D)/SUMIF(B:B,B63,C:C),"") -> 
E64: =IFERROR(D64/C64,"") ->  | H64: =IFERROR(SUMIF(B:B,B64,D:D)/SUMIF(B:B,B64,C:C),"") -> 
H65: =IFERROR(SUMIF(B:B,B65,D:D)/SUMIF(B:B,B65,C:C),"") -> 
H66: =IFERROR(SUMIF(B:B,B66,D:D)/SUMIF(B:B,B66,C:C),"") -> 
H67: =IFERROR(SUMIF(B:B,B67,D:D)/SUMIF(B:B,B67,C:C),"") -> 
H68: =IFERROR(SUMIF(B:B,B68,D:D)/SUMIF(B:B,B68,C:C),"") -> 
H69: =IFERROR(SUMIF(B:B,B69,D:D)/SUMIF(B:B,B69,C:C),"") -> 
H70: =IFERROR(SUMIF(B:B,B70,D:D)/SUMIF(B:B,B70,C:C),"") -> 
H71: =IFERROR(SUMIF(B:B,B71,D:D)/SUMIF(B:B,B71,C:C),"") -> 
H72: =IFERROR(SUMIF(B:B,B72,D:D)/SUMIF(B:B,B72,C:C),"") -> 
H73: =IFERROR(SUMIF(B:B,B73,D:D)/SUMIF(B:B,B73,C:C),"") -> 
H74: =IFERROR(SUMIF(B:B,B74,D:D)/SUMIF(B:B,B74,C:C),"") -> 
H75: =IFERROR(SUMIF(B:B,B75,D:D)/SUMIF(B:B,B75,C:C),"") -> 
H76: =IFERROR(SUMIF(B:B,B76,D:D)/SUMIF(B:B,B76,C:C),"") -> 
H77: =IFERROR(SUMIF(B:B,B77,D:D)/SUMIF(B:B,B77,C:C),"") -> 
H78: =IFERROR(SUMIF(B:B,B78,D:D)/SUMIF(B:B,B78,C:C),"") -> 
H79: =IFERROR(SUMIF(B:B,B79,D:D)/SUMIF(B:B,B79,C:C),"") -> 
H80: =IFERROR(SUMIF(B:B,B80,D:D)/SUMIF(B:B,B80,C:C),"") -> 
H81: =IFERROR(SUMIF(B:B,B81,D:D)/SUMIF(B:B,B81,C:C),"") -> 
H82: =IFERROR(SUMIF(B:B,B82,D:D)/SUMIF(B:B,B82,C:C),"") -> 
H83: =IFERROR(SUMIF(B:B,B83,D:D)/SUMIF(B:B,B83,C:C),"") -> 
H84: =IFERROR(SUMIF(B:B,B84,D:D)/SUMIF(B:B,B84,C:C),"") -> 
H85: =IFERROR(SUMIF(B:B,B85,D:D)/SUMIF(B:B,B85,C:C),"") -> 
H86: =IFERROR(SUMIF(B:B,B86,D:D)/SUMIF(B:B,B86,C:C),"") -> 
H87: =IFERROR(SUMIF(B:B,B87,D:D)/SUMIF(B:B,B87,C:C),"") -> 
H88: =IFERROR(SUMIF(B:B,B88,D:D)/SUMIF(B:B,B88,C:C),"") -> 
H89: =IFERROR(SUMIF(B:B,B89,D:D)/SUMIF(B:B,B89,C:C),"") -> 
H90: =IFERROR(SUMIF(B:B,B90,D:D)/SUMIF(B:B,B90,C:C),"") -> 
H91: =IFERROR(SUMIF(B:B,B91,D:D)/SUMIF(B:B,B91,C:C),"") -> 
H92: =IFERROR(SUMIF(B:B,B92,D:D)/SUMIF(B:B,B92,C:C),"") -> 
H93: =IFERROR(SUMIF(B:B,B93,D:D)/SUMIF(B:B,B93,C:C),"") -> 
H94: =IFERROR(SUMIF(B:B,B94,D:D)/SUMIF(B:B,B94,C:C),"") -> 
H95: =IFERROR(SUMIF(B:B,B95,D:D)/SUMIF(B:B,B95,C:C),"") -> 
H96: =IFERROR(SUMIF(B:B,B96,D:D)/SUMIF(B:B,B96,C:C),"") -> 
H97: =IFERROR(SUMIF(B:B,B97,D:D)/SUMIF(B:B,B97,C:C),"") -> 
H98: =IFERROR(SUMIF(B:B,B98,D:D)/SUMIF(B:B,B98,C:C),"") -> 
H99: =IFERROR(SUMIF(B:B,B99,D:D)/SUMIF(B:B,B99,C:C),"") -> 
H100: =IFERROR(SUMIF(B:B,B100,D:D)/SUMIF(B:B,B100,C:C),"") -> 
H101: =IFERROR(SUMIF(B:B,B101,D:D)/SUMIF(B:B,B101,C:C),"") -> 
H102: =IFERROR(SUMIF(B:B,B102,D:D)/SUMIF(B:B,B102,C:C),"") -> 
H103: =IFERROR(SUMIF(B:B,B103,D:D)/SUMIF(B:B,B103,C:C),"") -> 
H104: =IFERROR(SUMIF(B:B,B104,D:D)/SUMIF(B:B,B104,C:C),"") -> 
H105: =IFERROR(SUMIF(B:B,B105,D:D)/SUMIF(B:B,B105,C:C),"") -> 
H106: =IFERROR(SUMIF(B:B,B106,D:D)/SUMIF(B:B,B106,C:C),"") -> 
H107: =IFERROR(SUMIF(B:B,B107,D:D)/SUMIF(B:B,B107,C:C),"") -> 
H108: =IFERROR(SUMIF(B:B,B108,D:D)/SUMIF(B:B,B108,C:C),"") -> 
H109: =IFERROR(SUMIF(B:B,B109,D:D)/SUMIF(B:B,B109,C:C),"") -> 
H110: =IFERROR(SUMIF(B:B,B110,D:D)/SUMIF(B:B,B110,C:C),"") -> 
H111: =IFERROR(SUMIF(B:B,B111,D:D)/SUMIF(B:B,B111,C:C),"") -> 
H112: =IFERROR(SUMIF(B:B,B112,D:D)/SUMIF(B:B,B112,C:C),"") -> 
H113: =IFERROR(SUMIF(B:B,B113,D:D)/SUMIF(B:B,B113,C:C),"") -> 
H114: =IFERROR(SUMIF(B:B,B114,D:D)/SUMIF(B:B,B114,C:C),"") -> 
H115: =IFERROR(SUMIF(B:B,B115,D:D)/SUMIF(B:B,B115,C:C),"") -> 
H116: =IFERROR(SUMIF(B:B,B116,D:D)/SUMIF(B:B,B116,C:C),"") -> 
H117: =IFERROR(SUMIF(B:B,B117,D:D)/SUMIF(B:B,B117,C:C),"") -> 
H118: =IFERROR(SUMIF(B:B,B118,D:D)/SUMIF(B:B,B118,C:C),"") -> 
H119: =IFERROR(SUMIF(B:B,B119,D:D)/SUMIF(B:B,B119,C:C),"") -> 
H120: =IFERROR(SUMIF(B:B,B120,D:D)/SUMIF(B:B,B120,C:C),"") -> 
H121: =IFERROR(SUMIF(B:B,B121,D:D)/SUMIF(B:B,B121,C:C),"") -> 
H122: =IFERROR(SUMIF(B:B,B122,D:D)/SUMIF(B:B,B122,C:C),"") -> 
H123: =IFERROR(SUMIF(B:B,B123,D:D)/SUMIF(B:B,B123,C:C),"") -> 
H124: =IFERROR(SUMIF(B:B,B124,D:D)/SUMIF(B:B,B124,C:C),"") -> 
H125: =IFERROR(SUMIF(B:B,B125,D:D)/SUMIF(B:B,B125,C:C),"") -> 
H126: =IFERROR(SUMIF(B:B,B126,D:D)/SUMIF(B:B,B126,C:C),"") -> 
H127: =IFERROR(SUMIF(B:B,B127,D:D)/SUMIF(B:B,B127,C:C),"") -> 
E128: =IFERROR(D128/C128,"") ->  | H128: =IFERROR(SUMIF(B:B,B128,D:D)/SUMIF(B:B,B128,C:C),"") -> 
H129: =IFERROR(SUMIF(B:B,B129,D:D)/SUMIF(B:B,B129,C:C),"") -> 
H130: =IFERROR(SUMIF(B:B,B130,D:D)/SUMIF(B:B,B130,C:C),"") -> 
H131: =IFERROR(SUMIF(B:B,B131,D:D)/SUMIF(B:B,B131,C:C),"") -> 
H132: =IFERROR(SUMIF(B:B,B132,D:D)/SUMIF(B:B,B132,C:C),"") -> 
H133: =IFERROR(SUMIF(B:B,B133,D:D)/SUMIF(B:B,B133,C:C),"") -> 
H134: =IFERROR(SUMIF(B:B,B134,D:D)/SUMIF(B:B,B134,C:C),"") -> 
H135: =IFERROR(SUMIF(B:B,B135,D:D)/SUMIF(B:B,B135,C:C),"") -> 
H136: =IFERROR(SUMIF(B:B,B136,D:D)/SUMIF(B:B,B136,C:C),"") -> 
H137: =IFERROR(SUMIF(B:B,B137,D:D)/SUMIF(B:B,B137,C:C),"") -> 
H138: =IFERROR(SUMIF(B:B,B138,D:D)/SUMIF(B:B,B138,C:C),"") -> 
H139: =IFERROR(SUMIF(B:B,B139,D:D)/SUMIF(B:B,B139,C:C),"") -> 
H140: =IFERROR(SUMIF(B:B,B140,D:D)/SUMIF(B:B,B140,C:C),"") -> 
H141: =IFERROR(SUMIF(B:B,B141,D:D)/SUMIF(B:B,B141,C:C),"") -> 
H142: =IFERROR(SUMIF(B:B,B142,D:D)/SUMIF(B:B,B142,C:C),"") -> 
H143: =IFERROR(SUMIF(B:B,B143,D:D)/SUMIF(B:B,B143,C:C),"") -> 
H144: =IFERROR(SUMIF(B:B,B144,D:D)/SUMIF(B:B,B144,C:C),"") -> 
H145: =IFERROR(SUMIF(B:B,B145,D:D)/SUMIF(B:B,B145,C:C),"") -> 
H146: =IFERROR(SUMIF(B:B,B146,D:D)/SUMIF(B:B,B146,C:C),"") -> 
H147: =IFERROR(SUMIF(B:B,B147,D:D)/SUMIF(B:B,B147,C:C),"") -> 
H148: =IFERROR(SUMIF(B:B,B148,D:D)/SUMIF(B:B,B148,C:C),"") -> 
H149: =IFERROR(SUMIF(B:B,B149,D:D)/SUMIF(B:B,B149,C:C),"") -> 
H150: =IFERROR(SUMIF(B:B,B150,D:D)/SUMIF(B:B,B150,C:C),"") -> 
H151: =IFERROR(SUMIF(B:B,B151,D:D)/SUMIF(B:B,B151,C:C),"") -> 
H152: =IFERROR(SUMIF(B:B,B152,D:D)/SUMIF(B:B,B152,C:C),"") -> 
H153: =IFERROR(SUMIF(B:B,B153,D:D)/SUMIF(B:B,B153,C:C),"") -> 
H154: =IFERROR(SUMIF(B:B,B154,D:D)/SUMIF(B:B,B154,C:C),"") -> 
H155: =IFERROR(SUMIF(B:B,B155,D:D)/SUMIF(B:B,B155,C:C),"") -> 
H156: =IFERROR(SUMIF(B:B,B156,D:D)/SUMIF(B:B,B156,C:C),"") -> 
H157: =IFERROR(SUMIF(B:B,B157,D:D)/SUMIF(B:B,B157,C:C),"") -> 
H158: =IFERROR(SUMIF(B:B,B158,D:D)/SUMIF(B:B,B158,C:C),"") -> 
H159: =IFERROR(SUMIF(B:B,B159,D:D)/SUMIF(B:B,B159,C:C),"") -> 
H160: =IFERROR(SUMIF(B:B,B160,D:D)/SUMIF(B:B,B160,C:C),"") -> 
H161: =IFERROR(SUMIF(B:B,B161,D:D)/SUMIF(B:B,B161,C:C),"") -> 
H162: =IFERROR(SUMIF(B:B,B162,D:D)/SUMIF(B:B,B162,C:C),"") -> 
H163: =IFERROR(SUMIF(B:B,B163,D:D)/SUMIF(B:B,B163,C:C),"") -> 
H164: =IFERROR(SUMIF(B:B,B164,D:D)/SUMIF(B:B,B164,C:C),"") -> 
H165: =IFERROR(SUMIF(B:B,B165,D:D)/SUMIF(B:B,B165,C:C),"") -> 
H166: =IFERROR(SUMIF(B:B,B166,D:D)/SUMIF(B:B,B166,C:C),"") -> 
H167: =IFERROR(SUMIF(B:B,B167,D:D)/SUMIF(B:B,B167,C:C),"") -> 
H168: =IFERROR(SUMIF(B:B,B168,D:D)/SUMIF(B:B,B168,C:C),"") -> 
H169: =IFERROR(SUMIF(B:B,B169,D:D)/SUMIF(B:B,B169,C:C),"") -> 
H170: =IFERROR(SUMIF(B:B,B170,D:D)/SUMIF(B:B,B170,C:C),"") -> 
H171: =IFERROR(SUMIF(B:B,B171,D:D)/SUMIF(B:B,B171,C:C),"") -> 
H172: =IFERROR(SUMIF(B:B,B172,D:D)/SUMIF(B:B,B172,C:C),"") -> 
H173: =IFERROR(SUMIF(B:B,B173,D:D)/SUMIF(B:B,B173,C:C),"") -> 
H174: =IFERROR(SUMIF(B:B,B174,D:D)/SUMIF(B:B,B174,C:C),"") -> 
H175: =IFERROR(SUMIF(B:B,B175,D:D)/SUMIF(B:B,B175,C:C),"") -> 
H176: =IFERROR(SUMIF(B:B,B176,D:D)/SUMIF(B:B,B176,C:C),"") -> 
H177: =IFERROR(SUMIF(B:B,B177,D:D)/SUMIF(B:B,B177,C:C),"") -> 
H178: =IFERROR(SUMIF(B:B,B178,D:D)/SUMIF(B:B,B178,C:C),"") -> 
H179: =IFERROR(SUMIF(B:B,B179,D:D)/SUMIF(B:B,B179,C:C),"") -> 
H180: =IFERROR(SUMIF(B:B,B180,D:D)/SUMIF(B:B,B180,C:C),"") -> 
H181: =IFERROR(SUMIF(B:B,B181,D:D)/SUMIF(B:B,B181,C:C),"") -> 
H182: =IFERROR(SUMIF(B:B,B182,D:D)/SUMIF(B:B,B182,C:C),"") -> 
H183: =IFERROR(SUMIF(B:B,B183,D:D)/SUMIF(B:B,B183,C:C),"") -> 
H184: =IFERROR(SUMIF(B:B,B184,D:D)/SUMIF(B:B,B184,C:C),"") -> 
H185: =IFERROR(SUMIF(B:B,B185,D:D)/SUMIF(B:B,B185,C:C),"") -> 
H186: =IFERROR(SUMIF(B:B,B186,D:D)/SUMIF(B:B,B186,C:C),"") -> 
H187: =IFERROR(SUMIF(B:B,B187,D:D)/SUMIF(B:B,B187,C:C),"") -> 
H188: =IFERROR(SUMIF(B:B,B188,D:D)/SUMIF(B:B,B188,C:C),"") -> 
H189: =IFERROR(SUMIF(B:B,B189,D:D)/SUMIF(B:B,B189,C:C),"") -> 
H190: =IFERROR(SUMIF(B:B,B190,D:D)/SUMIF(B:B,B190,C:C),"") -> 
H191: =IFERROR(SUMIF(B:B,B191,D:D)/SUMIF(B:B,B191,C:C),"") -> 
E192: =IFERROR(D192/C192,"") ->  | H192: =IFERROR(SUMIF(B:B,B192,D:D)/SUMIF(B:B,B192,C:C),"") -> 
H193: =IFERROR(SUMIF(B:B,B193,D:D)/SUMIF(B:B,B193,C:C),"") -> 
H194: =IFERROR(SUMIF(B:B,B194,D:D)/SUMIF(B:B,B194,C:C),"") -> 
H195: =IFERROR(SUMIF(B:B,B195,D:D)/SUMIF(B:B,B195,C:C),"") -> 
H196: =IFERROR(SUMIF(B:B,B196,D:D)/SUMIF(B:B,B196,C:C),"") -> 
H197: =IFERROR(SUMIF(B:B,B197,D:D)/SUMIF(B:B,B197,C:C),"") -> 
H198: =IFERROR(SUMIF(B:B,B198,D:D)/SUMIF(B:B,B198,C:C),"") -> 
H199: =IFERROR(SUMIF(B:B,B199,D:D)/SUMIF(B:B,B199,C:C),"") -> 
H200: =IFERROR(SUMIF(B:B,B200,D:D)/SUMIF(B:B,B200,C:C),"") -> 
... 798 more rows

Sheet SaleInfo
A1: Sale Info | D1: Only enter shares sold, not bought. (Enter Volume Sold and Stock)
A2: Date | B2: Stock | C2: Volume Sold | D2: Total Value Sold | E2: Share Sale Price | F2: Notes
A3: 2019-06-12 | B3: NCBFG (JMD) | C3: 12000 | D3: 2520000 | E3: =IFERROR(D3/C3,"") -> 210
E4: =IFERROR(D4/C4,"") -> 
E68: =IFERROR(D68/C68,"") -> 
E132: =IFERROR(D132/C132,"") -> 
E196: =IFERROR(D196/C196,"") -> 
E260: =IFERROR(D260/C260,"") -> 
E324: =IFERROR(D324/C324,"") -> 
E388: =IFERROR(D388/C388,"") -> 
E452: =IFERROR(D452/C452,"") -> 
E516: =IFERROR(D516/C516,"") -> 
E580: =IFERROR(D580/C580,"") -> 
E644: =IFERROR(D644/C644,"") -> 
E708: =IFERROR(D708/C708,"") -> 
E772: =IFERROR(D772/C772,"") -> 
E836: =IFERROR(D836/C836,"") -> 
E900: =IFERROR(D900/C900,"") -> 
E964: =IFERROR(D964/C964,"") -> 

Sheet Instructions
A1: Instructions:
A3: 1. Download and open the file. Ensure you allow any connections or macros it asks for, these are needed for it to function correctly.
A4: (NOTE: Microsoft Excel 2013 or newer is needed to run this file successfully)
A6: 2. Go to the "Purchase Info" tab, remove the example filler data (Columns A to D).
A7: 3. Input your own purchase data, putting each stock purchase in its own line like the filler example showed. (Multiple purchases of the same stock should be entered in multiple lines) (NOTE: THE PROPER TICKER SYNTAX MUST BE USED. E.g. "NCBFG (JMD)" not "NCBFG")
A8: 4. Go to the "SaleInfo" tab, remove the example filler data (Columns A to D).
A9: 5. Input your own sale data, putting each stock sale you've done in its own line and matching the (previously deleted) filler example. (Multiple sales of the same stock should also be entered in multiple lines) (NOTE: THE PROPER TICKER SYNTAX MUST BE USED. E.g. "NCBFG (JMD)" not "NCBFG")
A10: 6. Go to the Dashboard Tab (ignore any errors the sheet may be currently showing) and remove the filler dashboard entry (Column A ONLY).
A11: 7. Input the stock ticker of ALL the stocks you have purchased into the Dashboard starting at Column A, Row 17. (Note: you will only be able to enter data in Column A on the dashboard. All the other data will automatically fill itself in and update afterwards.(You only need to enter a stock you own once, regardless of how many times you purchased it. The sheet will calculate the details) (NOTE: THE PROPER TICKER SYNTAX MUST BE USED. E.g. "NCBFG (JMD)" not "NCBFG")
A12: 8. Hit the red "Refresh" button at the top of Column E. The dashboard will connect to the internet, get the latest prices for all JSE listed stocks, and update your portfolio to the current value as of the last closing date that JSE has available.
A13: PLEASE NOTE:
A14: 1. This dashboard relies on JSE's server's which are at times unreliable. It is not uncommon to refresh and get an error. If that happens, simply ensure you're connected to the internet and hit refresh again.
A15: 2. Areas in the file which are needed for calculation and should not be edited will not be accessible and will prompt for a password if attempted to be edited. These areas do not need to be edited and you do not need the password for the sheet to work correctly.

Sheet JSESiteQuery (hidden)
A1: Logo
A2: Sign in
A3: or Register for a Free Account
A4: Home
A5: News
A6: Events
A7: Market Data
A8: Investor Centre
A9: Products
A10: Services
A11: MYJSE
A12: About
A13: Jamaica Stock Exchange > Market Data > Daily Market Quote
A14: Daily Market Quote
A15: Combined Market for May 15, 2020
A16: Markets:
A17: Archived Reports:
A18: Go Download CSV
A19: INDICES
A20: Index | B20: Value | C20: Volume | D20: Change | E20: Change(%)
A21: JSE Combined Index | B21: 371399.39 | C21: 29737412 | D21: -1923.06 | E21: -0.52
A22: JSE Index | B22: 375066.49 | C22: 24395591 | D22: -2003.95 | E22: -0.53
A23: JSE All Jamaican Composite Index | B23: 411473.46 | C23: 24394591 | D23: -2215.55 | E23: -0.54
A24: JSE Select Index | B24: 9498.87 | C24: 1148235 | D24: -59.96 | E24: -0.63
A25: JSE Cross Listed Index | B25: 83.16 | C25: 1000 | D25: 0.07 | E25: 0.08
A26: Junior Market Index | B26: 2444.99 | C26: 5341821 | D26: -7.34 | E26: -0.3
A27: JSE USD Equities Index | B27: 186.97 | C27: 1343277 | D27: -5.58 | E27: -2.9
A28: JSE Financial Index | B28: 100.42 | C28: 3790638 | D28: -1.04 | E28: -1.03
A29: JSE Manufacturing & Distribution Index | B29: 74.71 | C29: 1183101 | D29: -0.04 | E29: -0.05
A30: ORDINARY SHARES
A31: Security | B31: Last Traded | C31: Close | D31: Price | E31: Closing | F31: Closing | G31: Volume | H31: Today's | I31: Today's | J31: 52 Week | K31: 52 Week | L31: Prev | M31: Current
B32: Price | C32: Price | D32: Change | E32: Bid | F32: Ask | G32: (non block) | H32: High | I32: Low | J32: High | K32: Low | L32: Yr Div | M32: Yr Div
A33: 138SL (JMD) | B33: 8.8 | C33: 7.97 | D33: 0.42 | E33: 8.8 | F33: 8.99 | G33: 43495 | H33: 9.19 | I33: 7.75 | J33: 9.48 | K33: 2.85
A34: 1834 (JMD) | B34: 0.8 | C34: 0.8 | D34: -0.05 | E34: 0.8 | F34: 0.9 | G34: 59522 | H34: 0.85 | I34: 0.8 | J34: 1.26 | K34: 0.75
A35: AFSVR2020 (JMD) | B35: 0 | C35: 99.5 | D35: 0 | E35: 0 | F35: 0 | G35: 0 | H35: 0 | I35: 0 | J35: 0 | K35: 0
A36: AFS (JMD) | B36: 22.1 | C36: 22.81 | D36: 0 | E36: 23.1 | F36: 26.5 | G36: 0 | H36: 0 | I36: 0 | J36: 48 | K36: 17.65
A37: AFSVR2025 (JMD) | B37: 0 | C37: 100 | D37: 0 | E37: 0 | F37: 0 | G37: 0 | H37: 0 | I37: 0 | J37: 0 | K37: 0
A38: AMG (JMD) | B38: 1.76 | C38: 1.76 | D38: 0 | E38: 1.65 | F38: 1.76 | G38: 0 | H38: 0 | I38: 0 | J38: 2.5 | K38: 1.3
A39: BIL (JMD) | B39: 51.21 | C39: 51.18 | D39: -0.2 | E39: 48.5 | F39: 52 | G39: 1497515 | H39: 51.7 | I39: 46.57 | J39: 100 | K39: 41
A40: BRG (JMD) | B40: 14 | C40: 14 | D40: 0.3 | E40: 13.3 | F40: 14 | G40: 125 | H40: 14 | I40: 14 | J40: 20.6 | K40: 9.5
A41: BPOW (JMD) | B41: 3.43 | C41: 3.43 | D41: -0.01 | E41: 3.4 | F41: 3.43 | G41: 6130 | H41: 3.43 | I41: 3.43 | J41: 16.3 | K41: 3
A42: CAC (JMD) | B42: 9 | C42: 9.39 | D42: 0 | E42: 9.39 | F42: 12.3 | G42: 0 | H42: 0 | I42: 0 | J42: 16 | K42: 9
A43: CHL (JMD) | B43: 6.5 | C43: 6.5 | D43: 0 | E43: 6.48 | F43: 6.5 | G43: 10000 | H43: 6.5 | I43: 6.5 | J43: 12 | K43: 5.1
A44: CABROKERS (JMD) | B44: 2.3 | C44: 2.32 | D44: 0.02 | E44: 2.25 | F44: 2.49 | G44: 24683 | H44: 2.49 | I44: 2.15 | J44: 2.85 | K44: 1.6
A45: CCC (JMD) | B45: 50.4 | C45: 50.13 | D45: 1.3 | E45: 50 | F45: 50.4 | G45: 23392 | H45: 50.4 | I45: 50 | J45: 89.99 | K45: 35
A46: KREMI (JMD) | B46: 2.2 | C46: 2.17 | D46: -0.28 | E46: 2.1 | F46: 2.95 | G46: 227357 | H46: 2.5 | I46: 2 | J46: 6 | K46: 1.82
A47: CFF (JMD) | B47: 10 | C47: 10 | D47: 0 | E47: 9.5 | F47: 14 | G47: 0 | H47: 0 | I47: 0 | J47: 20 | K47: 8
A48: CPJ (JMD) | B48: 2.5 | C48: 2.48 | D48: 0.09 | E48: 2.39 | F48: 2.49 | G48: 37155 | H48: 2.5 | I48: 2.4 | J48: 5.3 | K48: 2
A49: CPJVR2023 (JMD) | B49: 0 | C49: 100 | D49: 0 | E49: 0 | F49: 0 | G49: 0 | H49: 0 | I49: 0 | J49: 0 | K49: 0
A50: CAR (JMD) | B50: 6.5 | C50: 6.5 | D50: 0 | E50: 6.47 | F50: 6.5 | G50: 157400 | H50: 6.5 | I50: 6.5 | J50: 9.91 | K50: 5.8
A51: CBNY (JMD) | B51: 0.11 | C51: 0.11 | D51: 0.02 | E51: 0.09 | F51: 0.11 | G51: 30852 | H51: 0.11 | I51: 0.11 | J51: 0.14 | K51: 0.07
A52: PURITY (JMD) | B52: 1.51 | C52: 1.51 | D52: 0 | E52: 1.51 | F52: 1.69 | G52: 0 | H52: 0 | I52: 0 | J52: 2.5 | K52: 1.23
A53: DTL (JMD) | B53: 1.81 | C53: 1.81 | D53: -0.24 | E53: 1.84 | F53: 2.11 | G53: 1556 | H53: 1.81 | I53: 1.81 | J53: 3 | K53: 1.4
A54: DCOVE (JMD) | B54: 7 | C54: 7 | D54: 0 | E54: 6.7 | F54: 7.8 | G54: 15131 | H54: 7 | I54: 7 | J54: 12.05 | K54: 6
A55: ELITE (JMD) | B55: 3.88 | C55: 3.69 | D55: 0.07 | E55: 3.5 | F55: 3.88 | G55: 29100 | H55: 3.88 | I55: 3.62 | J55: 7.5 | K55: 2.07
A56: CPFV (JMD) | B56: 32.28 | C56: 32.28 | D56: 0 | E56: 32.3 | F56: 33.99 | G56: 0 | H56: 0 | I56: 0 | J56: 50 | K56: 30
A57: EPLY (JMD) | B57: 14.25 | C57: 14.43 | D57: 1.18 | E57: 13.8 | F57: 14.95 | G57: 5926 | H57: 14.6 | I57: 14.25 | J57: 20 | K57: 10.1
A58: EFRESH (JMD) | B58: 0.71 | C58: 0.77 | D58: -0.05 | E58: 0.72 | F58: 0.77 | G58: 32000 | H58: 0.82 | I58: 0.71 | J58: 2 | K58: 0.5
A59: ECL (JMD) | B59: 3.5 | C59: 3.47 | D59: 0.09 | E59: 3.4 | F59: 3.51 | G59: 4559 | H59: 3.51 | I59: 3.35 | J59: 8 | K59: 2.85
A60: FIRSTROCKJMD (JMD) | B60: 10.5 | C60: 10.95 | D60: -0.35 | E60: 10.4 | F60: 11.35 | G60: 22700 | H60: 11.4 | I60: 10.5 | J60: 18.49 | K60: 8.5
A61: FIRSTROCKUSD (USD) | B61: 0.09 | C61: 0.09 | D61: 0 | E61: 0.08 | F61: 0.09 | G61: 4427 | H61: 0.09 | I61: 0.09 | J61: 0.12 | K61: 0.06
A62: FTNA (JMD) | B62: 5.57 | C62: 5.5 | D62: 0.09 | E62: 5.46 | F62: 5.57 | G62: 127121 | H62: 5.57 | I62: 5.41 | J62: 9 | K62: 3.5
A63: FOSRICH (JMD) | B63: 3.7 | C63: 3.7 | D63: 0.21 | E63: 3.47 | F63: 3.7 | G63: 5383 | H63: 3.7 | I63: 3.7 | J63: 6.5 | K63: 2
A64: GENAC (JMD) | B64: 4.7 | C64: 5.05 | D64: -0.11 | E64: 4.54 | F64: 5.05 | G64: 697342 | H64: 5.27 | I64: 4.52 | J64: 9 | K64: 3.89
A65: GK (JMD) | B65: 58 | C65: 57.77 | D65: -0.18 | E65: 57 | F65: 58 | G65: 152891 | H65: 58 | I65: 56.5 | J65: 79.99 | K65: 50.51
A66: GWEST (JMD) | B66: 0.8 | C66: 0.8 | D66: 0 | E66: 0.8 | F66: 0.9 | G66: 433 | H66: 0.8 | I66: 0.8 | J66: 1.77 | K66: 0.6
A67: HONBUN (JMD) | B67: 5.2 | C67: 5.1 | D67: 0.05 | E67: 5 | F67: 5.44 | G67: 6735 | H67: 5.2 | I67: 5.05 | J67: 9.9 | K67: 3.8
A68: ICREATE (JMD) | B68: 0.55 | C68: 0.51 | D68: 0.04 | E68: 0.48 | F68: 0.55 | G68: 1276052 | H68: 0.61 | I68: 0.45 | J68: 0.92 | K68: 0.4
A69: INDIES (JMD) | B69: 2.29 | C69: 2.29 | D69: -0.01 | E69: 2.25 | F69: 2.29 | G69: 24593 | H69: 2.29 | I69: 2.29 | J69: 4 | K69: 1.25
A70: ROC (JMD) | B70: 2.7 | C70: 2.7 | D70: 0.01 | E70: 3 | F70: 3.45 | G70: 23000 | H70: 2.7 | I70: 2.7 | J70: 4.96 | K70: 2
A71: ISP (JMD) | B71: 15.99 | C71: 15.99 | D71: 0 | E71: 13.5 | F71: 15.9 | G71: 0 | H71: 0 | I71: 0 | J71: 33 | K71: 11.5
A72: JBG (JMD) | B72: 24 | C72: 24.49 | D72: -0.51 | E72: 24 | F72: 25 | G72: 71423 | H72: 25 | I72: 24 | J72: 43.63 | K72: 21
A73: JP (JMD) | B73: 19 | C73: 19.11 | D73: -0.55 | E73: 19.16 | F73: 20.5 | G73: 12053 | H73: 19.2 | I73: 19 | J73: 31.19 | K73: 15
A74: JSE (JMD) | B74: 21.5 | C74: 20.8 | D74: -0.44 | E74: 20.51 | F74: 21.5 | G74: 31781 | H74: 21.5 | I74: 20.51 | J74: 40.01 | K74: 15
A75: JAMT (JMD) | B75: 3.81 | C75: 3.86 | D75: -0.1 | E75: 3.81 | F75: 4 | G75: 81964 | H75: 3.98 | I75: 3.81 | J75: 9 | K75: 3.26
A76: JETCON (JMD) | B76: 0.88 | C76: 0.88 | D76: 0.08 | E76: 0.85 | F76: 0.88 | G76: 43792 | H76: 0.88 | I76: 0.86 | J76: 2.5 | K76: 0.65
A77: JMMBGL (JMD) | B77: 34 | C77: 33.96 | D77: 0.11 | E77: 33.99 | F77: 34 | G77: 116071 | H77: 34 | I77: 33.85 | J77: 55.07 | K77: 30.72
A78: KLE (JMD) | B78: 1.7 | C78: 1.7 | D78: 0 | E78: 1.5 | F78: 1.7 | G78: 0 | H78: 0 | I78: 0 | J78: 2.8 | K78: 1.2
A79: KEY (JMD) | B79: 7.6 | C79: 7.7 | D79: -0.27 | E79: 7.02 | F79: 7.7 | G79: 148234 | H79: 8 | I79: 7 | J79: 11.5 | K79: 2
A80: KPREIT (JMD) | B80: 6 | C80: 6.1 | D80: 0 | E80: 6 | F80: 6.2 | G80: 0 | H80: 0 | I80: 0 | J80: 8.1 | K80: 4.5
A81: KW (JMD) | B81: 48 | C81: 48 | D81: 1.93 | E81: 46.8 | F81: 48 | G81: 22249 | H81: 48 | I81: 48 | J81: 73 | K81: 36
A82: KEX (JMD) | B82: 7.78 | C82: 7.28 | D82: -0.58 | E82: 7.78 | F82: 8.96 | G82: 36650 | H82: 7.78 | I82: 7 | J82: 12.9 | K82: 5
A83: LASD (JMD) | B83: 3.25 | C83: 3.28 | D83: 0.09 | E83: 3.1 | F83: 3.25 | G83: 6877 | H83: 3.35 | I83: 3.25 | J83: 4 | K83: 1.9
A84: LASF (JMD) | B84: 2.69 | C84: 2.65 | D84: -0.05 | E84: 2.57 | F84: 2.69 | G84: 28028 | H84: 2.69 | I84: 2.56 | J84: 7 | K84: 1.9
A85: LASM (JMD) | B85: 3.97 | C85: 3.95 | D85: 0.08 | E85: 3.97 | F85: 3.99 | G85: 36324 | H85: 3.97 | I85: 3.81 | J85: 6.5 | K85: 2.5
A86: LUMBER (JMD) | B86: 1.13 | C86: 1.13 | D86: 0.02 | E86: 1.12 | F86: 1.13 | G86: 2000 | H86: 1.13 | I86: 1.13 | J86: 2.67 | K86: 1
A87: MAILPAC (JMD) | B87: 1.88 | C87: 1.83 | D87: -0.1 | E87: 1.79 | F87: 1.89 | G87: 2526913 | H87: 1.96 | I87: 1.75 | J87: 2.6 | K87: 1.2
A88: MEEG (JMD) | B88: 4.1 | C88: 4.1 | D88: 0.02 | E88: 4.08 | F88: 4.87 | G88: 673 | H88: 4.1 | I88: 4.1 | J88: 8 | K88: 3.2
A89: MTL (JMD) | B89: 32.21 | C89: 32.21 | D89: 0 | E89: 0.19 | F89: 0 | G89: 0 | H89: 0 | I89: 0 | J89: 32.21 | K89: 32.21
A90: MTL (USD) | B90: 0.18 | C90: 0.18 | D90: 0 | E90: 0.16 | F90: 0.18 | G90: 3000 | H90: 0.18 | I90: 0.18 | J90: 0.36 | K90: 0.18
A91: MIL (JMD) | B91: 5.77 | C91: 5.46 | D91: -0.31 | E91: 5.2 | F91: 5.86 | G91: 142650 | H91: 5.86 | I91: 5.11 | J91: 10.14 | K91: 4.75
A92: MJE (JMD) | B92: 8.99 | C92: 7.86 | D92: -1.58 | E92: 7.02 | F92: 8.99 | G92: 16066 | H92: 8.99 | I92: 7.65 | J92: 14.5 | K92: 5.48
A93: MDS (JMD) | B93: 6.2 | C93: 6.2 | D93: -0.01 | E93: 5.9 | F93: 6.2 | G93: 10064 | H93: 6.2 | I93: 6.2 | J93: 9 | K93: 5
A94: MPCCEL (JMD) | B94: 175 | C94: 175 | D94: 0.3 | E94: 149 | F94: 176 | G94: 1000 | H94: 175 | I94: 175 | J94: 275 | K94: 126
A95: MPCCEL (USD) | B95: 1 | C95: 1 | D95: 0 | E95: 1.05 | F95: 0 | G95: 0 | H95: 0 | I95: 0 | J95: 0 | K95: 0
A96: NCBFG (JMD) | B96: 150 | C96: 148.23 | D96: 0.87 | E96: 149 | F96: 150 | G96: 82819 | H96: 150 | I96: 147 | J96: 249 | K96: 131
A97: NCBFGFR2021 (JMD) | B97: 0 | C97: 143.61 | D97: 0 | E97: 0 | F97: 0 | G97: 0 | H97: 0 | I97: 0 | J97: 0 | K97: 0
A98: PAL (JMD) | B98: 1500 | C98: 1500 | D98: 0 | E98: 1500 | F98: 2000 | G98: 158 | H98: 1500 | I98: 1500 | J98: 2900 | K98: 1275
A99: PJAM (JMD) | B99: 76 | C99: 76.2 | D99: -1.97 | E99: 75.5 | F99: 77 | G99: 126313 | H99: 79.99 | I99: 76 | J99: 110.6 | K99: 73
A100: PTL (JMD) | B100: 2 | C100: 1.97 | D100: 0 | E100: 1.89 | F100: 1.99 | G100: 0 | H100: 0 | I100: 0 | J100: 2.45 | K100: 1.4
A101: PJX (JMD) | B101: 7.66 | C101: 7.66 | D101: 0 | E101: 7.66 | F101: 8.6 | G101: 0 | H101: 0 | I101: 0 | J101: 11 | K101: 7
A102: PBS (USD) | B102: 0.77 | C102: 0.77 | D102: 0 | E102: 0.64 | F102: 0 | G102: 0 | H102: 0 | I102: 0 | J102: 0.77 | K102: 0.5
A103: PROVEN (JMD) | B103: 36.5 | C103: 36.4 | D103: 0.25 | E103: 35.05 | F103: 37 | G103: 18158 | H103: 36.5 | I103: 36 | J103: 55 | K103: 31
A104: PROVEN (USD) | B104: 0.23 | C104: 0.23 | D104: 0 | E104: 0.22 | F104: 0.23 | G104: 101304 | H104: 0.23 | I104: 0.23 | J104: 0.37 | K104: 0.2
A105: PULS (JMD) | B105: 2.16 | C105: 2.11 | D105: 0 | E105: 2.07 | F105: 2.16 | G105: 542214 | H105: 2.18 | I105: 2.05 | J105: 4.33 | K105: 0.77
A106: QWI (JMD) | B106: 0.71 | C106: 0.71 | D106: 0 | E106: 0.7 | F106: 0.72 | G106: 180699 | H106: 0.72 | I106: 0.7 | J106: 1.69 | K106: 0.55
A107: RJR (JMD) | B107: 1.28 | C107: 1.3 | D107: -0.07 | E107: 1.29 | F107: 1.42 | G107: 148935 | H107: 1.37 | I107: 1.28 | J107: 2.58 | K107: 1
A108: SJ (JMD) | B108: 45.5 | C108: 45.48 | D108: -0.05 | E108: 45.44 | F108: 45.5 | G108: 31112 | H108: 45.5 | I108: 45.47 | J108: 84.98 | K108: 37.5
A109: XFUND (JMD) | B109: 7.95 | C109: 6.89 | D109: -0.61 | E109: 7.5 | F109: 7.95 | G109: 1905 | H109: 7.95 | I109: 6.75 | J109: 13 | K109: 5.8
A110: SELECTF (JMD) | B110: 0.74 | C110: 0.75 | D110: 0.01 | E110: 0.73 | F110: 0.74 | G110: 3505227 | H110: 0.75 | I110: 0.74 | J110: 1.98 | K110: 0.58
A111: SELECTMD (JMD) | B111: 0.89 | C111: 0.9 | D111: 0.02 | E111: 0.89 | F111: 0.9 | G111: 70987 | H111: 0.91 | I111: 0.87 | J111: 1.16 | K111: 0.46
A112: SALF (JMD) | B112: 25 | C112: 27.44 | D112: -1.61 | E112: 24.51 | F112: 29.5 | G112: 8263 | H112: 28.5 | I112: 25 | J112: 38.25 | K112: 24.5
A113: SGJ (JMD) | B113: 42.02 | C113: 44.95 | D113: -2.45 | E113: 42.77 | F113: 47 | G113: 85576 | H113: 47.35 | I113: 42.02 | J113: 62.4 | K113: 35
A114: SEP (JMD) | B114: 49.99 | C114: 49.9 | D114: 0.49 | E114: 48 | F114: 49.99 | G114: 4857 | H114: 49.99 | I114: 48.1 | J114: 70 | K114: 30
A115: SSLVC (JMD) | B115: 0.9 | C115: 0.9 | D115: 0.12 | E115: 0.75 | F115: 0.9 | G115: 166 | H115: 0.9 | I115: 0.9 | J115: 1.7 | K115: 0.7
A116: SML (JMD) | B116: 5.05 | C116: 4.98 | D116: 0 | E116: 5 | F116: 5.05 | G116: 0 | H116: 0 | I116: 0 | J116: 6.3 | K116: 4.2
A117: SOS (JMD) | B117: 6.2 | C117: 6.2 | D117: 0.08 | E117: 6.05 | F117: 6.2 | G117: 14000 | H117: 6.2 | I117: 6.2 | J117: 17 | K117: 5.5
A118: SIL (JMD) | B118: 2.85 | C118: 2.84 | D118: -0.01 | E118: 2.75 | F118: 2.85 | G118: 350290 | H118: 2.85 | I118: 2.8 | J118: 3.99 | K118: 2.2
A119: SIL (USD) | B119: 0.02 | C119: 0.02 | D119: 0 | E119: 0.02 | F119: 0.03 | G119: 4331 | H119: 0.02 | I119: 0.02 | J119: 0.05 | K119: 0.02
A120: SVL (JMD) | B120: 15.37 | C120: 14.62 | D120: 0.42 | E120: 14.5 | F120: 15.39 | G120: 98320 | H120: 15.4 | I120: 14.25 | J120: 34.32 | K120: 11.72
A121: SCIJMD (JMD) | B121: 18.6 | C121: 18.69 | D121: -0.57 | E121: 17.55 | F121: 18.8 | G121: 27602 | H121: 19.18 | I121: 18 | J121: 30 | K121: 11.11
A122: SCIUSD (USD) | B122: 0.13 | C122: 0.13 | D122: 0 | E122: 0.12 | F122: 0.13 | G122: 10918 | H122: 0.13 | I122: 0.13 | J122: 0.13 | K122: 0.13
A123: SCIUSD (JMD) | B123: 0.13 | C123: 0.13 | D123: 0 | E123: 0 | F123: 0.19 | G123: 0 | H123: 0 | I123: 0 | J123: 13.06 | K123: 13.06 | M123: 0.0029
A124: SCIJMD (USD) | B124: 13.06 | C124: 13.06 | D124: 0 | E124: 0 | F124: 0 | G124: 0 | H124: 0 | I124: 0 | J124: 0.22 | K124: 0.09 | M124: 0.0029
A125: LAB (JMD) | B125: 1.85 | C125: 1.87 | D125: -0.03 | E125: 1.85 | F125: 1.9 | G125: 6040 | H125: 1.9 | I125: 1.85 | J125: 4.51 | K125: 1.3
A126: TJH (JMD) | B126: 1.4 | C126: 1.39 | D126: 0 | E126: 1.39 | F126: 1.4 | G126: 13093637 | H126: 1.4 | I126: 1.39 | J126: 1.4 | K126: 1
A127: TJH (USD) | B127: 0.01 | C127: 0.01 | D127: 0 | E127: 0.01 | F127: 0.01 | G127: 1219297 | H127: 0.01 | I127: 0.01 | J127: 0.01 | K127: 0.01
A128: TOKI (USD) | B128: 0.01 | C128: 0.01 | D128: 0 | E128: 0.01 | F128: 0 | G128: 0 | H128: 0 | I128: 0 | J128: 0 | K128: 0
A129: TTECH (JMD) | B129: 3.71 | C129: 3.87 | D129: 0 | E129: 3.92 | F129: 4.75 | G129: 0 | H129: 0 | I129: 0 | J129: 8 | K129: 3.5
A130: VMIL (JMD) | B130: 7.8 | C130: 7.79 | D130: 0.13 | E130: 7.8 | F130: 8 | G130: 133907 | H130: 8 | I130: 7.56 | J130: 13.99 | K130: 4
A131: WIG (JMD) | B131: 0.7 | C131: 0.7 | D131: 0 | E131: 0.68 | F131: 0.7 | G131: 3239145 | H131: 0.71 | I131: 0.68 | J131: 1.15 | K131: 0.5
A132: WISYNCO (JMD) | B132: 17.9 | C132: 17.63 | D132: -0.08 | E132: 17.85 | F132: 18 | G132: 89646 | H132: 18.08 | I132: 17.06 | J132: 30 | K132: 11.5
A133: PREFERENCE SHARES
A134: Security | B134: Last Traded | C134: Close | D134: Price | E134: Closing | F134: Closing | G134: Volume | H134: Today's | I134: Today's | J134: 52 Week | K134: 52 >Week | L134: Prev | M134: Current
B135: Price | C135: Price | D135: Change | E135: Bid | F135: Ask | G135: (non block) | H135: High | I135: Low | J135: High | K135: Low | L135: Yr Div | M135: Yr Div
A136: 138SLVR (JMD) | B136: 6 | C136: 6 | D136: 0 | E136: 0 | F136: 6 | G136: 0 | H136: 0 | I136: 0 | J136: 6 | K136: 5
A137: CAB11B (JMD) | B137: 1000000 | C137: 1000000 | D137: 0 | E137: 0 | F137: 0 | G137: 0 | H137: 0 | I137: 0 | J137: 0 | K137: 0
A138: CAB11A (USD) | B138: 1000 | C138: 1000 | D138: 0 | E138: 0 | F138: 0 | G138: 0 | H138: 0 | I138: 0 | J138: 0 | K138: 0
A139: CAC9.50 (JMD) | B139: 1 | C139: 1 | D139: 0 | E139: 1 | F139: 1 | G139: 0 | H139: 0 | I139: 0 | J139: 1.3 | K139: 0.8
A140: DTL9 (JMD) | B140: 1.5 | C140: 1.5 | D140: 0 | E140: 1.5 | F140: 0 | G140: 0 | H140: 0 | I140: 0 | J140: 2.2 | K140: 1.4
A141: EPLY7.50 (JMD) | B141: 6.05 | C141: 6.05 | D141: 0 | E141: 6 | F141: 0 | G141: 0 | H141: 0 | I141: 0 | J141: 6.3 | K141: 4.6
A142: EPLY8.25 (JMD) | B142: 5 | C142: 5 | D142: 0 | E142: 4.5 | F142: 0 | G142: 0 | H142: 0 | I142: 0 | J142: 6.5 | K142: 5
A143: EPLY5.00 (USD) | B143: 1 | C143: 1 | D143: 0 | E143: 0 | F143: 1 | G143: 0 | H143: 0 | I143: 0 | J143: 1 | K143: 0.98 | M143: 0.017
A144: EPLY8.75 (JMD) | B144: 6.5 | C144: 6.25 | D144: 0 | E144: 0.1 | F144: 6.5 | G144: 0 | H144: 0 | I144: 0 | J144: 6.5 | K144: 5.8
A145: ELMIC (USD) | B145: 1.99 | C145: 1.99 | D145: 0 | E145: 1.94 | F145: 1.95 | G145: 0 | H145: 0 | I145: 0 | J145: 2.01 | K145: 1.99
A146: JPS5C (JMD) | B146: 0.38 | C146: 0.38 | D146: 0 | E146: 0.43 | F146: 0 | G146: 0 | H146: 0 | I146: 0 | J146: 0 | K146: 0
A147: JPS5D (JMD) | B147: 0.38 | C147: 0.38 | D147: 0 | E147: 0.45 | F147: 0 | G147: 0 | H147: 0 | I147: 0 | J147: 0 | K147: 0
A148: JPS6 (JMD) | B148: 0.44 | C148: 0.44 | D148: 0 | E148: 0.51 | F148: 0 | G148: 0 | H148: 0 | I148: 0 | J148: 0 | K148: 0
A149: JPS9.5 (JMD) | B149: 1302 | C149: 1302 | D149: 0 | E149: 1302 | F149: 0 | G149: 0 | H149: 0 | I149: 0 | J149: 0 | K149: 0
A150: JPS7 (JMD) | B150: 0.48 | C150: 0.48 | D150: 0 | E150: 0.55 | F150: 0 | G150: 0 | H150: 0 | I150: 0 | J150: 0 | K150: 0
A151: JMMBUS6.00 (USD) | B151: 1 | C151: 1.02 | D151: 0 | E151: 0 | F151: 0 | G151: 0 | H151: 0 | I151: 0 | J151: 0 | K151: 0
A152: JMMB7.50 (JMD) | B152: 1 | C152: 1 | D152: 0 | E152: 0 | F152: 0 | G152: 0 | H152: 0 | I152: 0 | J152: 0 | K152: 0
A153: JMMBGL5.50NC (USD) | B153: 2 | C153: 2 | D153: 0 | E153: 0 | F153: 0 | G153: 0 | H153: 0 | I153: 0 | J153: 2 | K153: 2
A154: JMMBGL5.75C (USD) | B154: 1.85 | C154: 1.85 | D154: 0 | E154: 0 | F154: 2 | G154: 0 | H154: 0 | I154: 0 | J154: 2.15 | K154: 1.72
A155: JMMBGL7.00NC (JMD) | B155: 1.68 | C155: 1.68 | D155: 0 | E155: 0 | F155: 1.68 | G155: 0 | H155: 0 | I155: 0 | J155: 2 | K155: 1.68
A156: JMMBGL7.25C (JMD) | B156: 1.2 | C156: 1.2 | D156: 0 | E156: 1.2 | F156: 1.6 | G156: 0 | H156: 0 | I156: 0 | J156: 2.11 | K156: 1.2
A157: JMMBGLUSD5.75 (USD) | B157: 1.5 | C157: 1.5 | D157: 0 | E157: 0 | F157: 0 | G157: 0 | H157: 0 | I157: 0 | J157: 1.5 | K157: 1.5
A158: JMMBGLUSD6.00 (USD) | B158: 0.99 | C158: 0.99 | D158: 0 | E158: 0.99 | F158: 1.1 | G158: 0 | H158: 0 | I158: 0 | J158: 1.12 | K158: 0.99
A159: JMMBGL7.25 (JMD) | B159: 1.6 | C159: 1.6 | D159: 0 | E159: 0.69 | F159: 1.6 | G159: 0 | H159: 0 | I159: 0 | J159: 1.9 | K159: 1.45
A160: JMMBGL7.50 (JMD) | B160: 0.76 | C160: 0.76 | D160: 0 | E160: 0.67 | F160: 0.76 | G160: 476 | H160: 0.76 | I160: 0.76 | J160: 1 | K160: 0.55
A161: PTL8.75 (JMD) | B161: 2 | C161: 2 | D161: 0 | E161: 0 | F161: 0 | G161: 0 | H161: 0 | I161: 0 | J161: 2.2 | K161: 2
A162: PBS9.75 (JMD) | B162: 100.01 | C162: 100.01 | D162: 0 | E162: 100 | F162: 0 | G162: 0 | H162: 0 | I162: 0 | J162: 108 | K162: 80
A163: BLOCK TRANSACTIONS ::
A164: Number of Trades: 0
A165: Total Value: 0.00
A166: Total Volume: 0
A167: ORDINARY TRANSACTIONS:
A168: Number of Trades: 1083
A169: Key:
A170: XD/XB/XS without entitlement to dividend, bonus, split.
A171: * new high or low
A172: HIGHLIGHTED RED ROW - Stock Suspended
A173: JSE Logo
A174: Jamaica Stock Exchange Limited
A175: We foster the growth of the domestic financial services sector.
A177: 40 Harbour Street, P.O.Box 1084, Kingston, Jamaica.
A178: Telephone: (876) 967-3271 Fax: (876) 924-9090.
A180: Disclaimer
A181: Nothing contained on this website should be construed as granting, by implication, estoppel or otherwise, any license or right to use any of the content, trademarks, copyrights, or other proprietary material without the express written permission of the JSE or such other party as may own the proprietary rights therein and any rights not expressly granted herein are reserved to the JSE or its third party providers, as applicable. Individuals using or accessing this website or its content or causing the use of this website or its contents whether manually or otherwise by the use of any software or machine or similar method, further acknowledge and agree to abide by all applicable Intellectual Property laws, as well as any additional notices or restrictions contained on this website.
A182: Follow Us
A183: News
A184: Annual Reports
A185: Articles
A186: Audited Financial Statements
A187: Directors' Circular
A188: General
A189: JSE Conference Presentations
A190: JSE Corporate Bond Market
A191: Quarterly Financial Statements
A192: Regional Stock Information
A193: Rights Issue
A194: Stock Market Game News
A195: Related Companies
A196: JSE Subsidiaries LogoJSE Subsidiaries Logo
A197: Services
A198: Regulatory Market Oversight DivisionJSE E-Campus LogoJSE Stock Market Game Logo
A199: Translate
A200: EnglishFrenchGermanPortugueseSpanish
A201: Version 3.9.0
A202: Developed by BAKARI DIGITAL LABS
... 2 more rows
